{"text_format":"1","workbook":"xlsx","n_sheets":27,"sheets":["DB（はじめに）","基本情報","参加同意書","協定書","活動計画","採択申請","採択申請 (2)","安全規範","コンプラ","コンプラ２","採択決定前着手届","採択変更申請","採択変更申請 (2)","活動記録・集合写真帳","作業写真（場所毎）","活動記録人件費管理簿","地域外関係者","再掲表","金銭出納簿 (その都度立替)","モニタリング１","効果チェックシート","実施状況報告","実施状況整理票 (様式19号別紙）","人件費領収書","交付金申請（請求書）","物品写真","金銭出納簿（事前に立替）"],"not_rendered":{"charts":0,"images":9,"macros":1,"external_links":0,"defined_names":38,"comments":14,"pivot_tables":0},"unopened":[],"bounds":{"document_bytes":16777216,"sheet_cells":100000,"rows_first":2000,"rows_last":500,"rows_between":2000,"halvings":0,"cell_chars":16384,"cell_head_chars":4096},"cells_cut":0,"cells_raw":0,"read":"whole","date_system":"1900"}

{"sheet":"DB（はじめに）","index":0,"n_rows":28,"n_cols":6,"rows_kept":28,"cut":false,"hidden":false,"merged":[[3,2,10,2],[0,0,0,2],[22,4,23,4],[13,2,14,2],[17,2,29,2]]}
["はじめに",null,null,"多面的交付金に関する資料を作成してください。"]
[null,null,null,"▼クリックすると、そのシートへジャンプします。▼"]
[null,null,"区分","シート名","様式名"]
[null,null,"採択申請"]
[null,null,null,null,"様式第8号別紙"]
[null,null,null,null,"様式第9号"]
[null,null,null,null,"様式第11号"]
[null,null,null,null,"様式第12号"]
[]
[null,null,null,null,"様式第10号13号"]
[null,null,null,null,"様式第15号"]
[]
[null,null,"区分","シート名","様式名"]
[null,null,"随時",null,"様式第16号","必要が生じたときに使用する様式です。まずは、協議会までご相談ください。"]
[null,null,null,null,"別記様式第1号","概算請求時（7月末、9月末、12月末）に作成し、提出ください。"]
[]
[null,null,"区分","シート名","様式名"]
[null,null,"活動期間中・実績報告",null,"様式第18号"]
[null,null,null,null,"様式第18号別添"]
[]
[null,null,null,null,"※関係人口創出タイプ利用時のみ"]
[null,null,null,null,"※人件費の支払日を入力"]
[null,null,null,null,"様式第19号\nどちらかを\n選択し作成"]
[]
[null,null,null,null,"様式第20号"]
[null,null,null,null,"様式第21号別紙2"]
[null,null,null,null,"様式21号"]
[null,null,null,null,"様式21号別紙"]

{"sheet":"基本情報","index":1,"n_rows":49,"n_cols":4,"rows_kept":49,"cut":false,"hidden":false,"merged":[]}
[]
[]
[]
[null,"基本情報入力シート"]
[]
[null,"協定書作成日",null,"←2021/4/1などと西暦で入力頂くと和暦に自動的に変換されます"]
[null,"活動組織所属市町名"]
[null,"活動対象森林所在市町名"]
[]
[]
[null,"計画策定日",null,"←2021/4/1などと西暦で入力頂くと和暦に自動的に変換されます"]
[null,"第1回計画変更日",null,"同上"]
[null,"第2回計画変更日",null,"同上"]
[null,"第3回計画変更日"]
[null,"第4回計画変更日"]
[]
[]
[null,"申請年度",null,"該当年の数字のみ記入頂くと令和と年度が自動で記載されます"]
[null,"活動年数",1,"該当年の数字のみ記入頂くと年目が自動で記載されます"]
[null,"組織名"]
[null,"代表者名"]
[null,"活動組織の所在地"]
[null,"協定の対象となる森林",null,"複数地番ある場合は〇〇他〇筆や〇〇他別紙など　　別紙に地番を列記"]
[null,"担当者名"]
[null,"電話番号",null,"‐をつけて入力下さい"]
[null,"Email"]
[]
[]
[null,"1回目採択通知年月日",null,"日付でなく文字列として今年度の発信番号を入力ください"]
[null,"2回目採択通知年月日"]
[]
[]
[]
[]
[]
[]
[]
[null,"緑色シート","採択申請時に提出"]
[]
[null,"黄色シート","実績報告時に提出"]
[]
[null,"青シート","必要が生じたときに提出"]
[]
[]
[]
[null,"各ページそのまま印刷頂いても結構ですが、　　　のセルは、"]
[null,"入力後は無色にしたほうが印刷時にインクの使用量を抑えられる"]
[null,"と思います。"]
[null,"または白黒印刷で印刷ください"]

{"sheet":"参加同意書","index":2,"n_rows":52,"n_cols":7,"rows_kept":52,"cut":false,"hidden":false,"merged":[[9,0,9,8],[11,0,11,8],[47,3,47,4],[48,3,48,4],[43,5,43,6],[44,5,44,6],[45,5,45,6],[46,5,46,6],[47,5,47,6],[48,5,48,6],[46,3,46,4],[39,4,39,5],[40,4,40,5],[43,3,43,4],[44,3,44,4],[45,3,45,4],[38,4,38,5],[15,4,15,5],[16,4,16,5],[19,4,19,5],[20,4,20,5],[21,4,21,5],[27,4,27,5],[28,4,28,5],[31,4,31,5],[35,4,35,5],[36,4,36,5],[37,4,37,5]]}
[]
[]
[]
[]
[null,"（様式第8号　別紙）"]
[null,null,null,null,null,null,"令和　年　　月　　日"]
[]
[]
[]
[{"$f":"基本情報!C20&\"参加同意書\"","v":"参加同意書"}]
[]
[{"$f":"\"以下３.の構成員は、\"&基本情報!C20&\"へ参加するとともに、活動組織の代表及び役員を\"","v":"以下３.の構成員は、へ参加するとともに、活動組織の代表及び役員を"}]
[null,"下記１．２．のとおり定めます。"]
[]
[null,"１．代表"]
[null,null,"役職名","氏名","住所",null,"備考"]
[]
[]
[null,"２．役員"]
[null,null,"役職名","氏名","住所",null,"備考"]
[]
[]
[]
[]
[]
[]
[]
[]
[]
[]
[]
[]
[]
[null,"３．構成員"]
[null,null,"（１）個人"]
[null,null,"役職名","氏名","住所",null,"備考"]
[]
[]
[]
[]
[]
[]
[null,null,"（２）団体"]
[null,null,"氏名","住所",null,"団体名"]
[]
[]
[]
[]
[]
[]
[null,null,"注：団体においては、活動組織の構成員となる者は代表者とし、構成員名簿を添付す"]
[null,null,"ること。"]

{"sheet":"協定書","index":3,"n_rows":59,"n_cols":11,"rows_kept":59,"cut":false,"hidden":false,"merged":[[58,2,58,5],[51,2,51,5],[52,2,52,5],[54,2,54,5],[55,2,55,5],[57,2,57,5],[5,0,5,9],[39,0,40,9],[42,0,43,9],[23,0,24,9],[7,0,8,9],[10,0,10,8],[13,0,14,8],[26,0,28,9],[30,0,32,9],[35,0,36,9]]}
[]
[]
[]
["（様式第9号）"]
[]
["森林・山村多面的機能発揮対策交付金の実施に関する協定書"]
[]
[{"$f":"\"　森林・山村多面的機能発揮対策実施要領（平成25年５月16日25林整森第74号林野庁長官通知）に基づき、\"&基本情報!C20&\"活動組織と森林所有者は、下記のとおり協定を締結する。\"","v":"　森林・山村多面的機能発揮対策実施要領（平成25年５月16日25林整森第74号林野庁長官通知）に基づき、活動組織と森林所有者は、下記のとおり協定を締結する。"}]
[]
[]
["記"]
[]
["（目的）"]
["第１条　この協定は、地域の森林・山村の多面的機能の発揮のための活動（以下「活動」という。）が円滑に実施できるよう、その内容等について定めることを目的とする。"]
[]
[]
["（協定期間）"]
["第２条　地域共同による活動の協定期間は、協定締結の日から令和   年   月    日までとする。"]
[]
["（協定の対象となる森林）"]
["第３条　協定の対象となる森林は、以下のとおりとする。"]
["所在地　",{"$f":"基本情報!C23","v":0},null,null,null,null,null,null,null,null,"←基本情報シートC13セルから計算式により表示"]
["面　積",null,"ha",null,null,null,null,null,null,null,"←面積は手入力"]
["計画図　別紙の「森林・山村多面的機能発揮対策交付金に係る活動計画書」の12に定めるとおりとする。"]
[]
["（森林経営計画の確認等）"]
[{"$f":"\"第４条　森林所有者は協定締結後に協定の対象となる森林において、森林経営計画を策定しようとする場合又は立木の伐採や森林の転用等を行おうとする場合は、\"&基本情報!C20&\"と事前に協議するものとする。\"","v":"第４条　森林所有者は協定締結後に協定の対象となる森林において、森林経営計画を策定しようとする場合又は立木の伐採や森林の転用等を行おうとする場合は、と事前に協議するものとする。"}]
[]
[]
[]
["２　協定の対象となる森林において活動計画の期間中に森林経営計画が策定された場合にあっても、前項後段の立木の伐採や森林の転用等を行おうとする場合の事前協議に関する規定及び第６条の規定は有効とする。"]
[]
[]
[]
["（活動計画）"]
["第５条　活動組織が行う活動は、別紙の「森林・山村多面的機能発揮対策交付金に係る活動計画書」の７に定めるとおりとする。"]
[]
[]
["（その他）"]
["第６条　この協定に定めのない事項、又は疑義が生じた場合には、活動組織と森林所有者が協議をして定めるものとする。"]
[]
[]
["上記協定の締結を証するため、活動組織と森林所有者は、本書を作成し、記名の上、それぞれ１通を保有するものとする。"]
[]
[]
[{"$f":"TEXT(基本情報!C6,\"[DBNum3]ggge年m月d日\")","v":"明治３３年１月０日"},null,null,null,null,null,null,null,null,null,"←基本情報シートC12セルから計算式により表示"]
[]
[null,{"$f":"基本情報!C20","v":0}]
[null,"住所",{"$f":"基本情報!C22","v":0},null,null,null,null,null,null,null,"←基本情報シートC12セルから計算式により表示"]
[null,"氏名",{"$f":"基本情報!C21","v":0},null,null,null,null,null,null,null,"←基本情報シートC11セルから計算式により表示"]
[]
[null,"住所",null,null,null,null,null,null,null,null,"←該当する方の住所氏名を手入力"]
[null,"氏名"]
[]
[null,"住所"]
[null,"氏名"]
[]
[null,"住所"]
[null,"氏名"]

{"sheet":"活動計画","index":4,"n_rows":169,"n_cols":14,"rows_kept":169,"cut":false,"hidden":false,"merged":[[136,1,136,12],[125,4,125,7],[125,8,125,12],[126,4,126,7],[126,8,126,12],[158,2,158,12],[131,1,131,2],[132,1,132,2],[131,3,131,12],[127,4,127,7],[127,8,127,12],[125,1,125,3],[126,1,126,3],[127,1,127,3],[132,3,132,12],[168,2,168,12],[140,1,140,12],[141,2,141,12],[151,2,151,12],[152,2,152,12],[154,2,154,12],[156,1,156,12],[144,1,144,12],[146,2,147,12],[161,4,161,11],[162,5,162,11],[163,4,163,11],[165,4,165,11],[166,4,166,11],[112,1,112,12],[113,1,113,12],[115,0,115,12],[116,1,116,3],[116,4,116,7],[111,1,111,12],[110,1,110,12],[116,8,116,12],[124,1,124,3],[124,4,124,7],[124,8,124,12],[117,1,117,3],[117,4,117,7],[118,1,118,3],[118,4,118,7],[119,1,119,3],[119,4,119,7],[120,1,120,12],[117,8,117,12],[118,8,118,12],[119,8,119,12],[104,8,105,8],[104,9,105,9],[104,10,105,10],[104,11,105,11],[109,5,109,6],[109,7,109,8],[109,9,109,10],[109,11,109,12],[106,3,106,6],[104,12,105,12],[105,3,105,6],[108,5,108,6],[104,3,104,6],[104,7,105,7],[106,7,106,8],[106,9,106,10],[106,11,106,12],[107,7,108,8],[107,9,108,10],[107,11,108,12],[96,1,96,6],[96,7,96,8],[96,9,96,10],[96,11,96,12],[97,1,97,6],[97,7,97,8],[97,9,97,10],[97,11,97,12],[103,2,103,6],[98,3,98,6],[99,3,99,6],[100,3,100,6],[101,3,101,6],[102,3,102,6],[102,8,103,8],[102,9,103,9],[102,10,103,10],[102,11,103,11],[102,12,103,12],[102,7,103,7],[95,1,95,6],[95,7,95,8],[95,9,95,10],[95,11,95,12],[28,0,28,12],[61,0,61,12],[63,0,63,12],[68,0,68,12],[71,1,71,12],[74,1,74,12],[79,1,79,12],[84,1,84,12],[88,1,88,12],[90,1,90,12],[59,0,59,12],[57,0,57,12],[55,0,55,12],[76,0,77,12]]}
[]
[]
[]
["（別紙３　様式第11号）"]
[]
[]
[]
[]
[]
[]
[]
[]
[]
[]
[]
[]
[]
[]
[]
[]
[]
[]
[]
[]
[]
[]
[]
[]
["活　動　計　画　書"]
[]
[]
[]
[]
[]
[]
[]
[]
[]
[]
[]
[]
[]
[]
[]
[]
[]
[]
[]
[]
[]
[]
[]
[]
[]
[]
[{"$f":"IF(基本情報!C14=\"\",\"\",基本情報!C14&\"改定\")","v":""},null,null,null,null,null,null,null,null,null,null,null,null,"←基本情報シートC5セルから計算式により表示"]
[]
[{"$f":"IF(基本情報!C13=\"\",\"\",TEXT(基本情報!C13,\"[DBNum3]ggge年m月d日\")&\"改定\")","v":""},null,null,null,null,null,null,null,null,null,null,null,null,"←基本情報シートC4セルから計算式により表示"]
[]
[{"$f":"IF(基本情報!C12=\"\",\"\",TEXT(基本情報!C12,\"[DBNum3]ggge年m月d日\")&\"改定\")","v":""},null,null,null,null,null,null,null,null,null,null,null,null,"←基本情報シートC3セルから計算式により表示"]
[]
[{"$f":"TEXT(基本情報!C11,\"[DBNum3]ggge年m月d日\")&\"策定\"","v":"明治３３年１月０日策定"},null,null,null,null,null,null,null,null,null,null,null,null,"←基本情報シートC2セルから計算式により表示"]
[]
[{"$f":"基本情報!C20","v":0},null,null,null,null,null,null,null,null,null,null,null,null,"←基本情報シートC17セルから計算式により表示"]
[]
[]
[]
[]
["森林・山村多面的機能発揮対策交付金に係る活動計画書"]
[]
["１.組織名"]
[null,{"$f":"基本情報!C20","v":0},null,null,null,null,null,null,null,null,null,null,null,"←基本情報シートC10セルから計算式により表示"]
[]
["２．活動組織の所在地"]
[null,{"$f":"基本情報!C22","v":0},null,null,null,null,null,null,null,null,null,null,null,"←基本情報シートC12セルから計算式により表示"]
[]
["３．地区の概要、取組の背景・地元の自治体、自治会、集落等のニーズに対応するなど地域の活性\n   化への寄与等"]
[]
[]
[null,null,null,null,null,null,null,null,null,null,null,null,null,"←手入力し適宜行幅を変更し印刷プレビューにて枠内に収まっているかを確認してください"]
[]
[]
["４．取組概要"]
[]
[null,null,null,null,null,null,null,null,null,null,null,null,null,"←手入力し適宜行幅を変更し印刷プレビューにて枠内に収まっているかを確認してください"]
[]
[]
["５．構成員の概要"]
[null,"※構成員の居住地（どのような地域から参加しているか）、職種、経歴、所属団体等、構成員の多様性がわかるように記載すること。"]
[]
["　　",null,null,null,null,null,null,null,null,null,null,null,null,"←手入力し適宜行幅を変更し印刷プレビューにて枠内に収まっているかを確認してください"]
[]
[]
[]
["６．年度別スケジュール"]
[null,"取組メニュー",null,null,null,null,null,"令和５年度",null,"令和６年度",null,"令和７年度"]
[null,"１.活動推進費"]
[null,"２.実践活動"]
[null,null,"A-1　地域環境保全タイプ（里山林保全）","地域環境保全タイプ\n（里山林保全）",null,null,null,null,"ha",null,"ha",null,"ha"]
[null,null,"A-2　森林資源利用タイプ","地域環境保全タイプ\n（侵入竹除去、竹林整備）",null,null,null,null,"ha",null,"ha",null,"ha"]
[null,null,"B","森林資源利用タイプ",null,null,null,null,"ha",null,"ha",null,"ha"]
[null,null,"C","森林機能強化タイプ\n（歩道や作業道の作設・改修等の延長を記載）",null,null,null,null,"ha\nm",null,"ha\nm",null,"ha\nm"]
[null,null,"2-1","間伐等（除伐・枝打ちを含む）実施面積"]
[]
[null,null,"2-2","活動を始める時点で長期にわたり手入れをされていなかったと考えられる森林を整備する面積"]
[null,null,null,"（該当面積がある場合、写真を添付すること）"]
[null,null,"C","関係人口創出・維持タイプ"]
[null,"３.資機材・施設の整備等"]
[null,null,null,null,null,"（１/2以内）"]
[null,null,null,null,null,"（１/3以内）"]
[null,"※１　延長には森林調査・見回りを除く。"]
[null,"※２　２のCの森林機能強化タイプの森林面積については、スケジュールの期間内に地域環境保全タイプ又は森林資源利用タイプにより森林整備を実施する面積を記載する。"]
[null,"※３　２－２については、2年目以降はその前年度までの活動により該当する森林の整備を実施している場合はその森林の面積を除外し、その年度に新たに該当する森林の整備を実施する面積を記載する。"]
[null,"※４　２のDの関係人口創出・維持タイプについては、毎年度の実施内容を記載する。"]
[]
["７．活動の目標と結果を測定するためモニタリング方法（地域環境保全タイプ及び森林資源利用タイプについて記載）"]
[null,"タイプ名",null,null,"活動の目標",null,null,null,"モニタリング方法"]
[]
[null,null,null,null,null,null,null,null,null,null,null,null,null,"←手入力し適宜行幅を変更し印刷プレビューにて枠内に収まっているかを確認してください"]
[]
[null,"（注 ）目標の設定及びモニタリング方法の記載については、別に定めるガイドランを参考とすること。"]
[]
[]
["８．年度別に実施する安全講習等の名称及び内容"]
[null,"年 度",null,null,"講習の名称",null,null,null,"講習の内容"]
[null,null,null,null,null,null,null,null,null,null,null,null,null,"←手入力し適宜行幅を変更し印刷プレビューにて枠内に収まっているかを確認してください"]
[]
[]
[]
[]
["９．安全のために装備する物品及び傷害保険の名称"]
[null,"安全装備",null,null,null,null,null,null,null,null,null,null,null,"←手入力し適宜行幅を変更し印刷プレビューにて枠内に収まっているかを確認してください"]
[null,"傷害保険",null,null,null,null,null,null,null,null,null,null,null,"←手入力し適宜行幅を変更し印刷プレビューにて枠内に収まっているかを確認してください"]
[]
["１０．４年目以降の活動（森林管理）計画"]
[]
[null,null,null,null,null,null,null,null,null,null,null,null,null,"←手入力し適宜行幅を変更し印刷プレビューにて枠内に収まっているかを確認してください"]
[]
[]
["１１計画図（協定の対象としている区域の図面）"]
[null,"取組の実施箇所の森林計画図を添付すること。森林計画図がない場合は、対象森林の面積が分かる縮尺5,000分の１以上の図面を添付すること。添付した図面に、計画期間中の各タイプの活動内容及び森林経営計画の策定の有無を図示すること。また、森林機能強化タイプにおいては、改修等を実施する路網や鳥獣被害防止柵を図示すること。"]
[]
["１２．持続性向上に向けた取組"]
[]
[null,null,null,null,null,null,null,null,null,null,null,null,null,"←手入力し適宜行幅を変更し印刷プレビューにて枠内に収まっているかを確認してください"]
[]
[null,null,"※活動する人材の育成や確保、活動経費の確保など、活動組織が本活動計画終了後も活動を継続していくために行おうとする取り組みについて記載する。"]
[]
[]
["１３．その他"]
[null,"（１）写真"]
[null,null,"取組の実施箇所に長期わたり手入れをしていなかったと考えられる里山林がある場合はその写真を添付すること。"]
[]
[null,"（２）収入"]
[null,null,"会費、林産物収入など森林・山村多面的機能発揮対策交付金以外の収入について記載すること。"]
[]
[null,null,null,null,null,null,null,null,null,null,null,null,null,"←手入力し適宜行幅を変更し印刷プレビューにて枠内に収まっているかを確認してください"]
[]
[]
[null,"（３）委託"]
[null,null,"活動計画における取組についての委託"]
[null,null,"・委託機関名"]
[null,null,"・連絡先（電話番号等）"]
[null,null,"・委託時期"]
[null,null,"・委託内容（委託する区域の林小班、委託業務の内容（面積、作業の内容）等）"]
[]
[null,null,"・委託金額"]
[]
[null,null,"※ 活動を作業委託する場合は、活動組織としての活動（作業の監督や林内の見回り等）を活動計画の中で必ず明記すること。"]

{"sheet":"採択申請","index":5,"n_rows":60,"n_cols":10,"rows_kept":60,"cut":false,"hidden":false,"merged":[[59,4,59,5],[57,0,57,12],[36,2,38,2],[55,0,55,6],[5,5,5,6],[54,0,54,6],[4,5,4,6],[51,0,52,6],[53,0,53,6],[9,0,9,6],[10,0,10,6],[12,0,12,6],[14,0,16,6],[17,0,17,6],[33,0,35,0],[33,2,35,2],[36,0,38,0],[39,0,41,0],[39,2,41,2]]}
[]
[]
[]
["（別紙３　様式第11号）"]
[null,null,null,null,null," 番　   　　号"]
[null,null,null,null,null,null,null,"←西暦で2021/4/17のように入力ください"]
[]
["いしかわ森林・山村多面的機能発揮対策協議会"]
["会長　橘　順吉　殿"]
[{"$f":"基本情報!C20","v":0}]
[{"$f":"基本情報!C21","v":0}]
[]
[{"$f":"\"令和\"&基本情報!C18&\"年度 森林・山村多面的機能発揮対策交付金に係る採択申請書\"","v":"令和年度 森林・山村多面的機能発揮対策交付金に係る採択申請書"}]
[]
["　森林・山村多面的機能発揮対策実施要領（平成25年５月16日25林整森第74号林野庁長官通知）別紙３の第５の４（１）に基づき、下記のとおり森林・山村多面的機能発揮対策交付金の採択を申請する。"]
[]
[]
["記"]
[]
["１．活動組織名"]
[null,{"$f":"基本情報!C20","v":0}]
[]
["２．協定の対象となる森林の位置"]
[null,{"$f":"基本情報!C23","v":0}]
[]
["３．担当者名・電話番号（連絡がとれる担当者及び電話番号を記載）"]
[null,{"$f":"基本情報!C24","v":0},null,"email:",{"$f":"基本情報!C26","v":0}]
[null,{"$f":"基本情報!C25","v":0}]
[]
[]
["４．森林・山村多面的機能発揮対策交付金",null,null,null,null,null,null,1,2,3]
["取組メニュー","交付単価等","森林面積等","交付金額","県の支援額","市町の支援額","計"]
["活動推進費",112500,"初年度のみ",0,0,0,{"$f":"SUM(D33:F33)","v":0}]
["地域環境保全タイプ\n（里山林保全）",120000,1,null,null,null,null,120000,115000,110000]
[null,115000,null,{"$f":"HLOOKUP(基本情報!$C$19,採択申請!$H$31:$J$44,4,FALSE)*C34","v":120000},0,0,{"$f":"SUM(D35:F35)","v":120000}]
[null,110000]
["地域環境保全タイプ\n（侵入竹除去・竹林整備）",285000,null,null,null,null,null,285000,265000,245000]
[null,265000,null,{"$f":"HLOOKUP(基本情報!$C$19,採択申請!$H$31:$J$44,7,FALSE)*C37","v":0},0,0,{"$f":"SUM(D38:F38)","v":0}]
[null,245000]
["森林資源利用タイプ",120000,null,null,null,null,null,120000,115000,110000]
[null,115000,null,{"$f":"HLOOKUP(基本情報!$C$19,採択申請!$H$31:$J$44,10,FALSE)*C40","v":0},0,0,{"$f":"SUM(D41:F41)","v":0}]
[null,110000]
["森林機能強化タイプ",800,null,{"$f":"B43*C43","v":0},0,0,{"$f":"SUM(D43:F43)","v":0},800,800,800]
["関係人口創出・維持\nタイプ",50000,null,{"$f":"B44*C44","v":0},0,0,{"$f":"SUM(D44:F44)","v":0},50000,50000,50000]
["小　計",null,null,{"$f":"SUM(D33:D44)","v":120000},{"$f":"SUM(E33:E44)","v":0},{"$f":"SUM(F33:F44)","v":0},{"$f":"SUM(G33:G44)","v":120000}]
["資機材・施設の整備等","1/2以内",null,{"$f":"TRUNC(C46/2,-2)","v":0},0,0,0]
["資機材・施設の整備\n（林内作業車、薪割り機、薪ストーブ又は炭焼き小屋等）","1/3以内",null,{"$f":"TRUNC(C47/3,-2)","v":0},0,0,0]
["計",null,{"$f":"SUM(C46:C47)","v":0},{"$f":"SUM(D45:D47)","v":120000},{"$f":"SUM(E45:E47)","v":0},0,{"$f":"SUM(G45:G47)","v":120000}]
["間伐等(除伐､枝打ちを含む。)の実施面積"]
["当該年度に長期にわたり手入れをしていなかったと考えられる里山林を整備する面積"]
["（注１）面積は0.1ha、延長はm単位で記入。"]
["（注２）当該年度に長期にわたり手入れをしなかったと考えられる里山林を整備する面積は、活動期間内の前年度までに該当する里山林の整備を実施した場合は、その森林の面積を除外し、当該年度に新たに里山林の整備を実施する面積を記載すること。"]
[]
["（注３）県の支援額、市町の支援額及び計については、申請時に県や市町から予定額を聞いている場合等に記載すること。"]
["（注４）地域環境保全タイプ及び森林資源利用タイプの交付単価は、活動計画の経過年度によって異なるので留意すること。"]
[]
[]
["５．事業費（活動推進費＋各タイプ計＋資機材・施設の整備（購入額））"]
[]
[null,{"$f":"採択申請!D33","v":0},{"$f":"SUM(採択申請!G34:G44)","v":120000},{"$f":"採択申請!C48","v":0},{"$f":"B60+C60+D60","v":120000},null,"円","←採択申請シートから計算式により表示"]

{"sheet":"採択申請 (2)","index":6,"n_rows":41,"n_cols":14,"rows_kept":41,"cut":false,"hidden":false,"merged":[[40,0,44,12],[37,0,38,0],[35,1,36,12],[37,1,38,12],[30,3,30,10],[31,3,31,10],[30,0,30,2],[31,0,31,2],[30,11,30,12],[29,11,29,12],[31,11,31,12],[29,3,29,10],[35,0,36,0],[11,0,13,0],[14,0,16,0],[23,0,24,0],[25,0,26,0],[29,0,29,2]]}
[]
[]
[]
[]
[]
["６．月別スケジュール"]
[]
["取組内容","4月","5月","6月","7月","8月","9月","10月","11月","12月","1月","2月","3月"]
["１．活動推進費"]
[]
["２．実践活動"]
["A-1 地域環境保全タイプ（里山林保全）"]
[]
[]
["A-2 地域環境保全タイプ（侵入竹除去、竹林整備）"]
[]
[]
["B 森林資源利用タイプ"]
["伐採・搬出作業"]
["玉切・搬入薪割り作業"]
["C 森林機能強化タイプ"]
[]
[]
["D 関係人口創出・維持タイプ"]
[]
["３．資機材・施設の整備等"]
[]
[]
["７．安全講習等の名称及び内容"]
["講習の名称",null,null,"講習の内容",null,null,null,null,null,null,null,"実施月"]
[null,null,null,null,null,null,null,null,null,null,null,null,null,"←手入力し適宜行幅を変更し印刷プレビューにて枠内に収まっているかを確認してください"]
[null,null,null,null,null,null,null,null,null,null,null,null,null,"←手入力し適宜行幅を変更し印刷プレビューにて枠内に収まっているかを確認してください"]
["（注）安全講習等は、対象森林内で実施するものを記載すること。"]
[]
["８．関係人口創出・維持タイプの相手先及び活動内容"]
["【地域外関係者の相手先名】"]
[]
["【活動内容】"]
[]
["（注）地域外関係者との現地確認や活動内容の調整を必ず行うこと。"]
["＜施行注意＞\n　作業安全のための規範（個別規範：林業）事業者向けチェックシート、環境負荷低減のクロスコンプライアンスチェックシート、活動計画書、協定及び活動組織の運営に関する規約等を添付するものとする。\n　記載事項及び添付資料が既に提出している資料の内容と重複する場合には、その重複する部分については省略できることとし、省略するにあたっては、提出済の資料の名称その他資料の特定に必要な情報を記載の上、当該資料と同じ旨を記載することとする。"]

{"sheet":"安全規範","index":7,"n_rows":56,"n_cols":5,"rows_kept":56,"cut":false,"hidden":false,"merged":[[51,2,51,3],[52,2,52,3],[53,2,53,3],[54,2,54,3],[55,2,55,3],[50,2,50,3],[39,2,39,3],[40,2,40,3],[41,2,41,3],[42,2,42,3],[43,2,43,3],[44,2,44,3],[45,2,45,3],[46,2,46,3],[47,2,47,3],[48,2,48,3],[49,2,49,3],[38,2,38,3],[27,2,27,3],[28,2,28,3],[29,2,29,3],[30,2,30,3],[31,2,31,3],[32,2,32,3],[33,2,33,3],[34,2,34,3],[35,2,35,3],[36,2,36,3],[37,2,37,3],[26,2,26,3],[13,1,13,2],[13,3,13,4],[14,1,14,4],[15,1,15,4],[16,1,16,4],[17,1,20,3],[21,2,21,3],[22,2,22,3],[23,2,23,3],[24,2,24,3],[25,2,25,3],[12,1,12,2],[12,3,12,4],[4,1,4,4],[5,1,5,4],[6,1,6,4],[7,1,7,4],[8,1,8,2],[8,3,8,4],[9,1,9,2],[9,3,9,4],[10,1,10,2],[10,3,11,4],[11,1,11,2]]}
[]
[]
[]
[]
[null,"農林水産業・食品産業の作業安全のための規範（個別規範：林業）　"]
[null,"事業者向け　チェックシート"]
[null,"2023-04-20"]
[null,"林野庁"]
[null,"事業者名",null,{"$f":"基本情報!C20","v":0}]
[null,"記入者　役職・氏名"]
[null,"業種",null,"素材生産／造林・保育／その他（　　　　　　）"]
[null,"（○を付ける。複数選択可）"]
[null,"雇用労働者の有無",null,"有　／　無"]
[null,"記入日",null,"令和　６　年　4　月　18　日"]
[]
[null,"現在の取組状況をご記入下さい。"]
[]
[null,"具体的な事項",null,null,"○:実施 "]
[null,null,null,null,"×:実施していない"]
[null,null,null,null,"△:今後、実施予定"]
[null,null,null,null,"－:該当しない　　　"]
[null,1,"作業安全確保のために必要な対策を講じる"]
[null,"1-(1)","人的対応力の向上"]
[null,"1-(1)-①","作業事故防止に向けた方針を表明し、具体的な目標を設定する。",null,"ー"]
[null,"1-(1)-② ","知識、経験等を踏まえて、安全対策の責任者や担当者を選任する。",null,"△"]
[null,"1-(1)-③","作業安全に関する研修・教育等を受ける。また、作業安全に関する最新の知見や情報の幅広い収集に努める。",null,"×"]
[null,"1-(1)-④","適切な技能や免許等が必要な業務には、有資格者を就かせる。",null,"△"]
[null,"1-(1)-⑤","職場での朝礼や定期的な集会等により、作業の計画や安全意識を周知・徹底する。",null,"ー"]
[null,"1-(1)-⑥","安全対策の推進に向け、従事者の提案を促す。",null,"ー"]
[null,"1-(2)","作業安全のためのルールや手順の順守"]
[null,"1-(2)-①","関係法令等を遵守する。",null,"〇"]
[null,"1-(2)-②","高性能林業機械やチェーンソー等、資機材等の使用に当たっては、取扱説明書の確認等を通じて適切な使用方法を理解する。",null,"〇"]
[null,"1-(2)-③","作業に応じ、安全に配慮した服装や保護具等を着用する。",null,"〇"]
[null,"1-(2)-④","日常的な確認や健康診断、ストレスチェック等により、健康状態の管理を行う。",null,"ー"]
[null,"1-(2)-⑤","作業中に必要な休憩をとる。また、暑熱環境下では水分や塩分を摂取する。",null,"〇"]
[null,"1-(2)-⑥","作業安全対策に知見のある第三者等によるチェック及び指導を受ける。",null,"〇"]
[null,"1-(3)","資機材、設備等の安全性の確保"]
[null,"1-(3)-①","燃料や薬剤など危険性・有害性のある資材は、適切に保管し、安全に取り扱う。",null,"ー"]
[null,"1-(3)-②","機械や刃物等の日常点検・整備・保管を適切に行う。",null,"〇"]
[null,"1-(3)-③","資機材、設備等を導入・更新する際には、可能な限り安全に配慮したものを選択する。",null,"〇"]
[null,"1-(4)","作業環境の改善"]
[null,"1-(4)-①","職場や個人の状況に応じ、適切な作業分担を行う。また、日々の健康状態に応じて適切に分担を変更する。",null,"ー"]
[null,"1-(4)-②","高齢者を雇用する場合は、高齢者に配慮した作業環境の整備、作業管理を行う。",null,"ー"]
[null,"1-(4)-③","安全な作業手順、作業動作、機械・器具の使用方法等を明文化又は可視化し、全ての従事者が見ることができるようにする。",null,"〇"]
[null,"1-(4)-④","現場の危険箇所を予め特定し、改善・整備や注意喚起を行う。",null,"ー"]
[null,"1-(4)-⑤","４Ｓ（整理・整頓・清潔・清掃）活動を行う。",null,"ー"]
[null,"1-(5)","事故事例やヒヤリ・ハット事例などの情報の分析と活用"]
[null,"1-(5)-①","行政等への報告義務のない軽微な負傷を含む事故事例やヒヤリ・ハット事例を積極的に収集・分析・共有し、再発防止策を講じるとともに危険予知能力を高める。",null,"△"]
[null,"1-(5)-②","実施した作業安全対策の内容を記録する。",null,"△"]
[null,2,"事故発生時に備える"]
[null,"2-(1)","労災保険への加入等、補償措置の確保"]
[null,"2-(1)-①","経営者や家族従事者を含めて、労災保険やその他の補償措置を講じる。",null,"ー"]
[null,"2-(2)","事故後の速やかな対応策、再発防止策の検討と実施"]
[null,"2-(2)-①","事故が発生した場合の対応（救護・搬送、連絡、その後の調査、労基署への届出、再発防止策の策定等）の手順を明文化する。",null,"ー"]
[null,"2-(3)","事故時の事業継続のための備え"]
[null,"2-(3)-①","事故により従事者が作業に従事ができなくなった場合等に事業が継続できるよう、あらかじめ方策を検討する。",null,"ー"]

{"sheet":"コンプラ","index":8,"n_rows":19,"n_cols":11,"rows_kept":19,"cut":false,"hidden":false,"merged":[[1,2,1,10]]}
[null,null,"（別紙３　様式第10号）"]
[null,null,"環境負荷低減のクロスコンプライアンス チェックシート"]
[]
[null,null,null,"申請時\n（します）","（１）適正な施肥","報告時\n（しました）",null,null,"申請時\n（します）","（５）廃棄物の発生抑制、\n　　　適正な循環的な利用及び適正な処分","報告時\n（しました）"]
[null,null,"①",null,"※農産物等の調達を行う場合（該当しない             ）\n環境負荷低減に配慮した農産物等の調達を検討",null,null,"⑦",null,"プラ等廃棄物の削減に努め、適正に処理"]
[null,null,null,null,null,null,null,"⑧",null,"資源の再利用を検討"]
[null,null,null,"申請時\n（します）","（２）適正な防除","報告時\n（しました）"]
[null,null,"②",null,"※農産物等の調達を行う場合（該当しない            ）\n環境負荷低減に配慮した農産物等の調達を検討\n（再掲）",null,null,null,"申請時\n（します）","（６）生物多様性への悪影響の防止","報告時\n（しました）"]
[null,null,null,null,null,null,null,"⑨",null,"※生物多様性への影響が想定される、工事等を実施する場合（該当しない　　　　　）\n生物多様性に配慮した事業実施に努める"]
[null,null,null,"申請時\n（します）","（３）エネルギーの節減","報告時\n（しました）",null,"⑩",null,"※特定事業場である場合（該当しない　　　　　　）\n排水処理に係る水質汚染防止法の遵守"]
[null,null,"③",null,"オフィスや車両・機械等の電気・燃料の使用状況の記録・保存に努める"]
[null,null,"④",null,"省エネを意識し、不必要・非効率なエネルギー消費をしないこと（照明、空調、ウォームビズ・クールビズ、燃料効率のよい機械の利用等）を検討",null,null,null,"申請時\n（します）","（７）環境関係法令の遵守等","報告時\n（しました）"]
[null,null,"⑤",null,"環境負荷低減に配慮した商品、原料等の調達を検討",null,null,"⑪",null,"みどりの食料システム戦略の理解"]
[null,null,null,null,null,null,null,"⑫",null,"関係法令の遵守"]
[null,null,null,"申請時\n（します）","（４）悪臭及び害虫の発生防止","報告時\n（しました）",null,"⑬",null,"環境配慮の取組方針の策定や研修の実施に努める"]
[null,null,"⑥",null,"※肥料・飼料当の製造を行う場合（該当しない     　　　）\n悪臭・害虫の発生防止・低減に努める",null,null,"⑭",null,"※機械等を取扱う事業者である場合（該当しない   　 　　）\n機械等の適切な整備と管理に努める"]
[null,null,null,null,null,null,null,"⑮",null,"正しい知識に基づく作業安全に努める"]
[]
[null,null,"　　※の記載内容に「該当しない」場合には□にチェックしてください。この場合、当該項目の申請時・報告時のチェックは不要です。"]

{"sheet":"コンプラ２","index":9,"n_rows":20,"n_cols":9,"rows_kept":20,"cut":false,"hidden":false,"merged":[[1,0,1,8]]}
["（別紙３　様式第13号）"]
["環境負荷低減のクロスコンプライアンス チェックシート"]
[]
[null,"申請時\n（します）","（１）適正な施肥","報告時\n（しました）",null,null,"申請時\n（します）","（５）廃棄物の発生抑制、\n　　　適正な循環的な利用及び適正な処分","報告時\n（しました）"]
["①",null,"※種苗生産を行う場合（該当しない        ）\n肥料の適正な保管",null,null,"⑧",null,"廃棄物の削減に努め、適正に処理"]
["②",null,"※種苗生産を行う場合（該当しない        ）\n肥料の使用状況等の記録・保存に努める",null,null,"⑨",null,"未利用材の有効活用を検討"]
[]
[null,"申請時\n（します）","（２）適正な防除","報告時\n（しました）",null,null,"申請時\n（します）","（６）生物多様性への悪影響の防止","報告時\n（しました）"]
["③",null,"※農薬を使用する場合（該当しない        ）\n農薬の適正な使用・保管",null,null,"⑩",null,"生物多様性に配慮した事業実施（物資調達、施業等）に努める"]
["④",null,"※農薬を使用する場合（該当しない        ）\n農薬の使用状況等の記録・保存"]
[null,null,null,null,null,null,"申請時\n（します）","（７）環境関係法令の遵守等","報告時\n（しました）"]
[null,"申請時\n（します）","（３）エネルギーの節減","報告時\n（しました）",null,"⑪",null,"みどりの食料システム戦略の理解"]
["⑤",null,"林業機械や施設の電気・燃料の使用状況の記録・保存に努める",null,null,"⑫",null,"関係法令の遵守"]
["⑥",null,"省エネを意識し、不必要・非効率なエネルギー消費をしないように努める",null,null,"⑬",null,"林業機械等の装置・車両の適切な整備と管理の実施に努める"]
[null,null,null,null,null,"⑭",null,"正しい知識に基づく作業安全に努める"]
[null,"申請時\n（します）","（４）悪臭及び害虫の発生防止","報告時\n（しました）"]
["⑦",null,"悪臭・害虫の発生防止・低減に努める"]
[]
["（注1）申請を行う際に本様式の「該当なし」欄又は「申請時」欄に☑を付し、報告の際は「報告時」欄に☑を付して提出してください。"]
["（注2）記載内容に「該当しない」場合には□にチェックしてください。この場合、当該項目の申請時・報告時のチェックは不要です。"]

{"sheet":"採択決定前着手届","index":10,"n_rows":38,"n_cols":8,"rows_kept":38,"cut":false,"hidden":false,"merged":[[37,0,38,6],[33,0,34,6],[19,1,19,2],[17,0,17,6],[3,5,3,6],[4,5,4,6],[8,0,8,6],[9,0,9,6],[11,0,11,6],[14,0,15,6],[26,1,27,6],[29,0,30,6],[31,0,32,6],[35,0,36,6],[23,2,23,3]]}
[]
[]
["（様式第15号）"]
[null,null,null,null,null," 番　   　　号"]
[null,null,null,null,null,null,null,"←西暦で2021/4/17のように入力ください"]
[]
["いしかわ森林・山村多面的機能発揮対策協議会"]
["会長　橘　順吉　殿"]
[{"$f":"基本情報!C20","v":0}]
[{"$f":"基本情報!C21","v":0}]
[]
[{"$f":"\"令和\"&基本情報!C18&\"年度　森林・山村多面的機能発揮対策交付金交付決定前着手届\"","v":"令和年度　森林・山村多面的機能発揮対策交付金交付決定前着手届"}]
[]
[]
["　　森林・山村多面的機能発揮対策実施要領の別紙３の第５の７の規定に基づき、別記条件を了承の上、下記のとおり提出します。"]
[]
[]
["記"]
[]
["１．事業費",{"$f":"採択申請!G48","v":120000},null,"円"]
[]
["２．活動組織名",null,{"$f":"A9","v":0}]
[]
["３．着手予定年月日",null,null,null,null,null,null,"←西暦で2021/4/17のように入力ください"]
[]
["４．交付決定前の着手を必要とする理由"]
[]
[]
["（別記条件）"]
["１．交付決定を受けるまでの期間に天災等の事由によって実施した施策に損失を生じた場合はこれらの損失は事業主体者（※採択決定前着手届けを提出した活動組織）が負担すること。"]
[]
["２．交付決定を受けた交付金額が交付申請額又は交付申請予定額に達しない場合においても異議を申し立てないこと。"]
[]
["３．当該施策については、着工から交付決定を受ける期間内においては計画の変更は行わないこと。"]
[]
["（注）活動組織から地域協議会に提出する場合、（※）内の文言に変更し、本届出中の「交付決定」、「交付申請」をそれぞれ「採択決定」、「採択申請」に変更すること。"]
[]
["（注２）都道府県から林野庁長官等に提出する場合、本文中の「別紙３の第５の７」を「別紙４の第３」に変更すること。"]

{"sheet":"採択変更申請","index":11,"n_rows":49,"n_cols":8,"rows_kept":49,"cut":false,"hidden":false,"merged":[[40,0,41,0],[44,0,45,0],[46,0,47,0],[32,1,33,1],[30,1,31,1],[38,1,39,1],[13,0,15,6],[34,0,35,0],[34,1,35,1],[3,5,3,6],[4,5,4,6],[8,0,8,6],[9,0,9,6],[11,0,11,6],[50,0,50,6],[17,0,17,6],[19,1,19,6],[21,1,21,6],[48,0,48,6],[24,0,25,0],[24,1,25,1],[26,0,27,0],[26,1,27,1],[28,1,29,1],[28,0,29,0],[30,0,31,0],[32,0,33,0],[36,0,37,0],[42,0,43,0],[24,2,25,2]]}
[]
[]
["（様式第16号）"]
[null,null,null,null,null," 番　   　　号"]
[null,null,null,null,null,null,null,"←西暦で2021/4/17のように入力ください"]
[]
["いしかわ森林・山村多面的機能発揮対策協議会"]
["会長　橘　順吉　殿"]
[{"$f":"基本情報!C20","v":0}]
[{"$f":"基本情報!C21","v":0}]
[]
[{"$f":"\"令和\"&基本情報!C18&\"年度　森林・山村多面的機能発揮対策交付金に係る採択変更申請書（届出書）\"","v":"令和年度　森林・山村多面的機能発揮対策交付金に係る採択変更申請書（届出書）"}]
[]
[{"$f":"\"　\"&基本情報!C29&\"で採択通知のあった森林・山村多面的機能発揮対策交付金を変更したいので、森林・山村多面的機能発揮対策実施要領（平成25年５月16日25林整森第74号林野庁長官通知）別紙３の第５の６に基づき、下記のとおり採択の変更を申請する。\"","v":"　で採択通知のあった森林・山村多面的機能発揮対策交付金を変更したいので、森林・山村多面的機能発揮対策実施要領（平成25年５月16日25林整森第74号林野庁長官通知）別紙３の第５の６に基づき、下記のとおり採択の変更を申請する。"}]
[]
[]
[]
["記"]
["１．活動組織名"]
[null,{"$f":"基本情報!C20","v":0}]
["２．協定の対象となる森林の位置"]
[null,{"$f":"基本情報!C23","v":0}]
["３．森林・山村多面的機能発揮対策交付金"]
["取組メニュー","交付単価等","森林面積等","交付金額","県の支援額","市町の支援額","計"]
["活動推進費",{"$f":"採択申請!B33","v":112500},"初年度のみ",{"$f":"採択申請!D33","v":0},0,0,{"$f":"SUM(D25:F25)","v":0}]
[null,null,null,null,0,0,{"$f":"SUM(D26:F26)","v":0}]
["地域環境保全タイプ\n（里山林保全）",{"$f":"採択申請!B34","v":120000},{"$f":"採択申請!C34","v":1},{"$f":"B27*C27","v":120000},0,0,120000]
[null,null,null,null,null,0,0]
["地域環境保全タイプ\n（侵入竹除去・竹林整備）",{"$f":"採択申請!B40","v":120000},{"$f":"採択申請!C37","v":0},{"$f":"B29*C29","v":0},0,0,{"$f":"SUM(D29:F29)","v":0}]
[null,null,null,null,null,0,0]
["森林資源利用タイプ",{"$f":"採択申請!B40","v":120000},{"$f":"採択申請!C40","v":0},{"$f":"B31*C31","v":0},0,0,{"$f":"SUM(D31:F31)","v":0}]
[null,null,null,null,null,null,0]
["森林機能強化タイプ",{"$f":"採択申請!B43","v":800},{"$f":"採択申請!C43","v":0},{"$f":"B33*C33","v":0},0,0,{"$f":"SUM(D33:F33)","v":0}]
[null,null,null,{"$f":"B33*C34","v":0},null,null,0]
["関係人口創出・維持タイプ",{"$f":"採択申請!B44","v":50000},null,{"$f":"採択申請!D44","v":0},0,0,{"$f":"SUM(D35:F35)","v":0}]
[null,null,null,null,null,null,0]
["小　計",null,null,{"$f":"D25+D27+D29+D31+D33+D35","v":120000},null,null,{"$f":"D37+E37+F37","v":120000}]
[null,null,null,{"$f":"D26+D28+D30+D32+D34+D36","v":0},{"$f":"SUM(E25:E33)","v":0},{"$f":"SUM(F25:F33)","v":0},{"$f":"D38+E38+F38","v":0}]
["資機材・施設の整備","1/2以内",{"$f":"採択申請!C46","v":0},{"$f":"採択申請!D46","v":0},0,0,{"$f":"SUM(D39:F39)","v":0}]
[null,null,null,null,null,null,0]
["資機材・施設の整備等\n（林内作業車、薪割り機、薪ストーブ又は炭焼き小屋等）",null,{"$f":"採択申請!C47","v":0},{"$f":"採択申請!D47","v":0},null,null,0]
[null,"1/3以内",0,0,0,0,0]
["計",null,null,{"$f":"D37+D39+D41","v":120000},null,null,{"$f":"D43+E43+F43","v":120000}]
[null,null,null,{"$f":"D38+D40+D42","v":0},{"$f":"SUM(E38:E42)","v":0},0,{"$f":"D44+E44+F44","v":0}]
["間伐等(除伐､枝打ちを含む。)の実施面積",null,1]
[]
["当該年度に長期にわたり手入れをしていなかったと考えられる里山林を整備する面積",null,1]
[]
["（注）県の支援額、市町の支援額及び計については、申請時に県や市町から予定額を聞いている場合等に記載すること。"]

{"sheet":"採択変更申請 (2)","index":12,"n_rows":39,"n_cols":13,"rows_kept":39,"cut":false,"hidden":false,"merged":[[29,0,29,2],[29,3,29,9],[29,10,29,11],[38,0,39,12],[27,0,27,2],[27,3,27,9],[27,10,27,11],[28,0,28,2],[28,3,28,9],[28,10,28,11],[33,0,34,0],[33,1,34,12],[35,0,36,0],[35,1,36,12]]}
[]
[]
[]
["４．月別スケジュール"]
[]
["取組内容","4月","5月","6月","7月","8月","9月","10月","11月","12月","1月","2月","3月"]
["１．活動推進費"]
[]
["２．実践活動"]
["A-1 地域環境保全タイプ（里山林保全）"]
[]
[]
["A-2 地域環境保全タイプ（侵入竹除去、竹林整備）"]
[]
[]
["B 森林資源利用タイプ"]
[]
[]
["C 森林機能強化タイプ"]
[]
[]
["D 関係人口創出・維持タイプ"]
[]
["３．資機材・施設の整備等"]
[]
[]
["５．安全講習等の名称及び内容"]
["講習の名称",null,null,"講習の内容",null,null,null,null,null,null,"実施月"]
[]
[]
["（注）安全講習等は、対象森林内で実施するものを記載すること。"]
[]
["６．関係人口創出・維持タイプの相手先及び活動内容"]
["【地域外関係者の相手先名】"]
[]
["【活動内容】"]
[]
[]
["７．計画変更の理由（減額の理由）\n　　※減額の場合は減額する金額も併せて記載すること。\n"]

{"sheet":"活動記録・集合写真帳","index":13,"n_rows":109,"n_cols":26,"rows_kept":109,"cut":false,"hidden":false,"merged":[[48,14,48,19],[42,14,42,16],[42,17,42,23],[43,14,46,14],[43,15,43,19],[44,15,44,19],[45,15,45,19],[45,22,45,23],[46,15,46,19],[38,0,38,4],[38,5,38,9],[39,0,46,9],[39,11,39,13],[39,14,39,23],[40,11,46,13],[40,14,40,16],[40,17,40,23],[41,14,41,16],[41,17,41,23],[28,0,28,4],[28,5,28,9],[29,0,36,9],[29,11,29,13],[29,14,29,23],[30,11,36,13],[30,14,30,16],[30,17,30,23],[31,14,31,16],[31,17,31,23],[32,14,32,16],[32,17,32,23],[33,14,36,14],[33,15,33,19],[34,15,34,19],[35,15,35,19],[35,22,35,23],[36,15,36,19],[13,14,16,14],[13,15,13,19],[14,15,14,19],[15,15,15,19],[15,22,15,23],[16,15,16,19],[18,0,18,4],[18,5,18,9],[19,0,26,9],[19,11,19,13],[19,14,19,23],[20,11,26,13],[20,14,20,16],[20,17,20,23],[21,14,21,16],[21,17,21,23],[22,14,22,16],[22,17,22,23],[23,14,26,14],[23,15,23,19],[24,15,24,19],[25,15,25,19],[25,22,25,23],[26,15,26,19],[57,0,57,6],[59,0,59,23],[60,14,60,16],[60,17,60,23],[61,14,61,16],[61,17,61,23],[3,0,3,6],[5,0,5,23],[6,14,6,16],[6,17,6,23],[7,14,7,16],[7,17,7,23],[8,0,8,4],[8,5,8,9],[9,0,16,9],[9,11,9,13],[9,14,9,23],[10,11,16,13],[10,14,10,16],[10,17,10,23],[11,14,11,16],[11,17,11,23],[12,14,12,16],[12,17,12,23],[62,0,62,4],[62,5,62,9],[63,0,70,9],[63,11,63,13],[63,14,63,23],[64,11,70,13],[64,14,64,16],[64,17,64,23],[65,14,65,16],[65,17,65,23],[66,14,66,16],[66,17,66,23],[67,14,70,14],[67,15,67,19],[68,15,68,19],[69,15,69,19],[78,15,78,19],[79,15,79,19],[79,22,79,23],[80,15,80,19],[82,0,82,4],[82,5,82,9],[69,22,69,23],[70,15,70,19],[72,0,72,4],[72,5,72,9],[73,0,80,9],[73,11,73,13],[73,14,73,23],[74,11,80,13],[74,14,74,16],[74,17,74,23],[75,14,75,16],[75,17,75,23],[76,14,76,16],[76,17,76,23],[77,14,80,14],[77,15,77,19],[83,0,90,9],[83,11,83,13],[83,14,83,23],[84,11,90,13],[84,14,84,16],[84,17,84,23],[85,14,85,16],[85,17,85,23],[86,14,86,16],[86,17,86,23],[87,14,90,14],[87,15,87,19],[88,15,88,19],[89,15,89,19],[89,22,89,23],[90,15,90,19],[99,22,99,23],[100,15,100,19],[102,14,102,19],[92,0,92,4],[92,5,92,9],[93,0,100,9],[93,11,93,13],[93,14,93,23],[94,11,100,13],[94,14,94,16],[94,17,94,23],[95,14,95,16],[95,17,95,23],[96,14,96,16],[96,17,96,23],[97,14,100,14],[97,15,97,19],[98,15,98,19],[99,15,99,19]]}
[]
[]
[]
["（別紙３　様式第１８号）",null,null,null,null,null,null,null,null,null,null,null,null,null,null,null,null,null,null,null,null,null,null,null,null,"撮影者含む"]
["〇年度　森林・山村多面的機能発揮対策交付金"]
["活動記録兼作業写真整理帳（活動日毎の集合写真）"]
[null,null,null,null,null,null,null,null,null,null,null,null,null,null,"№："]
[null,null,null,null,null,null,null,null,null,null,null,null,null,null,"組織名："]
["　日　付",null,null,null,null,"令和○年○月○日"]
["ダブルクリックで写真を選択",null,null,null,null,null,null,null,null,null,null,"活動項目"]
[null,null,null,null,null,null,null,null,null,null,null,"取組内容",null,null,"活動場所"]
[null,null,null,null,null,null,null,null,null,null,null,null,null,null,"活動内容"]
[null,null,null,null,null,null,null,null,null,null,null,null,null,null,"実施時間"]
[null,null,null,null,null,null,null,null,null,null,null,null,null,null,"活動参加人数","構成員",null,null,null,null,null,"名"]
[null,null,null,null,null,null,null,null,null,null,null,null,null,null,null,"構成員以外",null,null,null,null,null,"名"]
[null,null,null,null,null,null,null,null,null,null,null,null,null,null,null,"合　計",null,null,null,null,null,"名"]
[null,null,null,null,null,null,null,null,null,null,null,null,null,null,null,"うち地域外関係者",null,null,null,null,null,"名"]
[]
["　日　付",null,null,null,null,"令和○年○月○日"]
["ダブルクリックで写真を選択",null,null,null,null,null,null,null,null,null,null,"活動項目"]
[null,null,null,null,null,null,null,null,null,null,null,"取組内容",null,null,"活動場所"]
[null,null,null,null,null,null,null,null,null,null,null,null,null,null,"活動内容"]
[null,null,null,null,null,null,null,null,null,null,null,null,null,null,"実施時間"]
[null,null,null,null,null,null,null,null,null,null,null,null,null,null,"活動参加人数","構成員",null,null,null,null,null,"名"]
[null,null,null,null,null,null,null,null,null,null,null,null,null,null,null,"構成員以外",null,null,null,null,null,"名"]
[null,null,null,null,null,null,null,null,null,null,null,null,null,null,null,"合　計",null,null,null,null,null,"名"]
[null,null,null,null,null,null,null,null,null,null,null,null,null,null,null,"うち地域外関係者",null,null,null,null,null,"名"]
[]
["　日　付",null,null,null,null,"令和○年○月○日"]
["ダブルクリックで写真を選択",null,null,null,null,null,null,null,null,null,null,"活動項目"]
[null,null,null,null,null,null,null,null,null,null,null,"取組内容",null,null,"活動場所"]
[null,null,null,null,null,null,null,null,null,null,null,null,null,null,"活動内容"]
[null,null,null,null,null,null,null,null,null,null,null,null,null,null,"実施時間"]
[null,null,null,null,null,null,null,null,null,null,null,null,null,null,"活動参加人数","構成員",null,null,null,null,null,"名"]
[null,null,null,null,null,null,null,null,null,null,null,null,null,null,null,"構成員以外",null,null,null,null,null,"名"]
[null,null,null,null,null,null,null,null,null,null,null,null,null,null,null,"合　計",null,null,null,null,null,"名"]
[null,null,null,null,null,null,null,null,null,null,null,null,null,null,null,"うち地域外関係者",null,null,null,null,null,"名"]
[]
["　日　付",null,null,null,null,"令和○年○月○日"]
["ダブルクリックで写真を選択",null,null,null,null,null,null,null,null,null,null,"活動項目"]
[null,null,null,null,null,null,null,null,null,null,null,"取組内容",null,null,"活動場所"]
[null,null,null,null,null,null,null,null,null,null,null,null,null,null,"活動内容"]
[null,null,null,null,null,null,null,null,null,null,null,null,null,null,"実施時間"]
[null,null,null,null,null,null,null,null,null,null,null,null,null,null,"活動参加人数","構成員",null,null,null,null,null,"名"]
[null,null,null,null,null,null,null,null,null,null,null,null,null,null,null,"構成員以外",null,null,null,null,null,"名"]
[null,null,null,null,null,null,null,null,null,null,null,null,null,null,null,"合　計",null,null,null,null,null,"名"]
[null,null,null,null,null,null,null,null,null,null,null,null,null,null,null,"うち地域外関係者",null,null,null,null,null,"名"]
[]
["活動項目"]
["①：活動推進費"]
["②：地域環境保全タイプ（里山林保全）"]
["③：地域環境保全タイプ（侵入竹除去・竹林整備）"]
["④：森林資源利用タイプ　　　"]
["⑤：森林機能強化タイプ　"]
["⑥：関係人口創出・維持タイプ"]
[]
["撮影者含む"]
["（別紙３　様式第１６号）"]
["〇年度　森林・山村多面的機能発揮対策交付金"]
["活動記録兼作業写真整理帳（活動日毎の集合写真）"]
[null,null,null,null,null,null,null,null,null,null,null,null,null,null,"№："]
[null,null,null,null,null,null,null,null,null,null,null,null,null,null,"組織名："]
["　日　付",null,null,null,null,"令和○年○月○日"]
["ダブルクリックで写真を選択",null,null,null,null,null,null,null,null,null,null,"活動項目"]
[null,null,null,null,null,null,null,null,null,null,null,"取組内容",null,null,"活動場所"]
[null,null,null,null,null,null,null,null,null,null,null,null,null,null,"活動内容"]
[null,null,null,null,null,null,null,null,null,null,null,null,null,null,"実施時間"]
[null,null,null,null,null,null,null,null,null,null,null,null,null,null,"活動参加人数","構成員",null,null,null,null,null,"名"]
[null,null,null,null,null,null,null,null,null,null,null,null,null,null,null,"構成員以外",null,null,null,null,null,"名"]
[null,null,null,null,null,null,null,null,null,null,null,null,null,null,null,"合　計",null,null,null,null,null,"名"]
[null,null,null,null,null,null,null,null,null,null,null,null,null,null,null,"うち地域外関係者",null,null,null,null,null,"名"]
[]
["　日　付",null,null,null,null,"令和○年○月○日"]
["ダブルクリックで写真を選択",null,null,null,null,null,null,null,null,null,null,"活動項目"]
[null,null,null,null,null,null,null,null,null,null,null,"取組内容",null,null,"活動場所"]
[null,null,null,null,null,null,null,null,null,null,null,null,null,null,"活動内容"]
[null,null,null,null,null,null,null,null,null,null,null,null,null,null,"実施時間"]
[null,null,null,null,null,null,null,null,null,null,null,null,null,null,"活動参加人数","構成員",null,null,null,null,null,"名"]
[null,null,null,null,null,null,null,null,null,null,null,null,null,null,null,"構成員以外",null,null,null,null,null,"名"]
[null,null,null,null,null,null,null,null,null,null,null,null,null,null,null,"合　計",null,null,null,null,null,"名"]
[null,null,null,null,null,null,null,null,null,null,null,null,null,null,null,"うち地域外関係者",null,null,null,null,null,"名"]
[]
["　日　付",null,null,null,null,"令和○年○月○日"]
["ダブルクリックで写真を選択",null,null,null,null,null,null,null,null,null,null,"活動項目"]
[null,null,null,null,null,null,null,null,null,null,null,"取組内容",null,null,"活動場所"]
[null,null,null,null,null,null,null,null,null,null,null,null,null,null,"活動内容"]
[null,null,null,null,null,null,null,null,null,null,null,null,null,null,"実施時間"]
[null,null,null,null,null,null,null,null,null,null,null,null,null,null,"活動参加人数","構成員",null,null,null,null,null,"名"]
[null,null,null,null,null,null,null,null,null,null,null,null,null,null,null,"構成員以外",null,null,null,null,null,"名"]
[null,null,null,null,null,null,null,null,null,null,null,null,null,null,null,"合　計",null,null,null,null,null,"名"]
[null,null,null,null,null,null,null,null,null,null,null,null,null,null,null,"うち地域外関係者",null,null,null,null,null,"名"]
[]
["　日　付",null,null,null,null,"令和○年○月○日"]
["ダブルクリックで写真を選択",null,null,null,null,null,null,null,null,null,null,"活動項目"]
[null,null,null,null,null,null,null,null,null,null,null,"取組内容",null,null,"活動場所"]
[null,null,null,null,null,null,null,null,null,null,null,null,null,null,"活動内容"]
[null,null,null,null,null,null,null,null,null,null,null,null,null,null,"実施時間"]
[null,null,null,null,null,null,null,null,null,null,null,null,null,null,"活動参加人数","構成員",null,null,null,null,null,"名"]
[null,null,null,null,null,null,null,null,null,null,null,null,null,null,null,"構成員以外",null,null,null,null,null,"名"]
[null,null,null,null,null,null,null,null,null,null,null,null,null,null,null,"合　計",null,null,null,null,null,"名"]
[null,null,null,null,null,null,null,null,null,null,null,null,null,null,null,"うち地域外関係者",null,null,null,null,null,"名"]
[]
["活動項目"]
["①：活動推進費"]
["②：地域環境保全タイプ（里山林保全）"]
["③：地域環境保全タイプ（侵入竹除去・竹林整備）"]
["④：森林資源利用タイプ　　　"]
["⑤：森林機能強化タイプ　"]
["⑥：関係人口創出・維持タイプ"]

{"sheet":"作業写真（場所毎）","index":14,"n_rows":132,"n_cols":16,"rows_kept":132,"cut":false,"hidden":false,"merged":[[123,0,123,9],[130,0,130,24],[131,0,131,24],[114,0,114,9],[115,0,115,2],[115,3,115,4],[115,5,115,9],[116,0,122,9],[116,11,116,14],[116,15,116,24],[117,11,122,14],[117,15,117,17],[117,18,117,24],[118,15,118,17],[118,18,118,24],[119,15,119,17],[119,18,119,24],[120,15,120,17],[104,0,104,9],[105,0,105,2],[105,3,105,4],[105,5,105,9],[106,0,112,9],[106,11,106,14],[106,15,106,24],[107,11,112,14],[107,15,107,17],[107,18,107,24],[108,15,108,17],[108,18,108,24],[109,15,109,17],[109,18,109,24],[110,15,110,17],[95,0,95,2],[95,3,95,4],[95,5,95,9],[96,0,102,9],[96,11,96,14],[96,15,96,24],[97,11,98,14],[97,15,97,17],[97,18,97,24],[98,15,98,17],[98,18,98,24],[99,15,99,17],[99,18,99,24],[100,15,100,17],[89,0,89,6],[90,0,90,24],[91,15,91,17],[91,18,91,24],[92,15,92,17],[92,18,92,24],[93,15,93,17],[93,18,93,24],[94,0,94,9],[30,0,36,9],[37,0,37,9],[44,0,44,24],[45,0,45,24],[30,15,30,24],[31,11,36,14],[31,15,31,17],[31,18,31,24],[32,15,32,17],[32,18,32,24],[33,15,33,17],[33,18,33,24],[34,15,34,17],[30,11,30,14],[21,18,21,24],[22,15,22,17],[22,18,22,24],[23,15,23,17],[23,18,23,24],[28,0,28,9],[29,0,29,2],[29,3,29,4],[29,5,29,9],[9,0,9,2],[9,3,9,4],[9,5,9,9],[11,18,11,24],[12,15,12,17],[12,18,12,24],[13,15,13,17],[13,18,13,24],[24,15,24,17],[14,15,14,17],[18,0,18,9],[19,0,19,2],[19,3,19,4],[19,5,19,9],[20,0,26,9],[20,11,20,14],[20,15,20,24],[21,11,26,14],[21,15,21,17],[10,0,16,9],[10,11,10,14],[10,15,10,24],[11,11,12,14],[11,15,11,17],[3,0,3,6],[4,0,4,24],[5,15,5,17],[5,18,5,24],[6,15,6,17],[6,18,6,24],[7,15,7,17],[7,18,7,24],[8,0,8,9],[50,15,50,17],[50,18,50,24],[51,0,51,9],[52,0,52,2],[52,3,52,4],[52,5,52,9],[46,0,46,6],[47,0,47,24],[48,15,48,17],[48,18,48,24],[49,15,49,17],[49,18,49,24],[61,0,61,9],[62,0,62,2],[62,3,62,4],[62,5,62,9],[63,0,69,9],[53,0,59,9],[53,11,53,14],[53,15,53,24],[54,11,55,14],[54,15,54,17],[54,18,54,24],[55,15,55,17],[55,18,55,24],[56,15,56,17],[56,18,56,24],[57,15,57,17],[71,0,71,9],[72,0,72,2],[72,3,72,4],[72,5,72,9],[73,0,79,9],[63,11,63,14],[63,15,63,24],[64,11,69,14],[64,15,64,17],[64,18,64,24],[65,15,65,17],[65,18,65,24],[66,15,66,17],[66,18,66,24],[67,15,67,17],[80,0,80,9],[87,0,87,24],[88,0,88,24],[73,11,73,14],[73,15,73,24],[74,11,79,14],[74,15,74,17],[74,18,74,24],[75,15,75,17],[75,18,75,24],[76,15,76,17],[76,18,76,24],[77,15,77,17]]}
[]
[]
[]
["（別紙３　様式第１８号　別添）"]
["作業写真整理帳（活動場所毎の作業写真）"]
[null,null,null,null,null,null,null,null,null,null,null,null,null,null,null,"№："]
[null,null,null,null,null,null,null,null,null,null,null,null,null,null,null,"組織名："]
[]
["作業前"]
[null,null,null,null,null,"令和○年○月○日"]
["ダブルクリックで写真を選択",null,null,null,null,null,null,null,null,null,null,"活動項目"]
[null,null,null,null,null,null,null,null,null,null,null,"取組内容",null,null,null,"活動場所"]
[null,null,null,null,null,null,null,null,null,null,null,null,null,null,null,"活動内容"]
[]
[]
[]
[]
[]
["作業中"]
[null,null,null,null,null,"令和○年○月○日"]
["ダブルクリックで写真を選択"]
[]
[]
[]
[]
[]
[]
[]
["作業後"]
[null,null,null,null,null,"令和○年○月○日"]
["ダブルクリックで写真を選択"]
[]
[]
[]
[]
[]
[]
["活動項目"]
["①：活動推進費"]
["②：地域環境保全タイプ（里山林保全）"]
["③：地域環境保全タイプ（侵入竹除去・竹林整備）"]
["④：森林資源利用タイプ　　　"]
["⑤：森林機能強化タイプ　"]
["⑥：関係人口創出・維持タイプ"]
["※活動前、活動中、活動後の状況について、それぞれ撮影すること。"]
["※写真撮影は作業起番ごとに１箇所以上で撮影すること。\n　　ただし、作業起番面積が1ha以上の場合は2箇所以上とする。"]
["（別紙３　様式第１６号　別添）"]
["作業写真整理帳（活動場所毎の作業写真）"]
[null,null,null,null,null,null,null,null,null,null,null,null,null,null,null,"№："]
[null,null,null,null,null,null,null,null,null,null,null,null,null,null,null,"組織名："]
[]
["作業前"]
[null,null,null,null,null,"令和○年○月○日"]
["ダブルクリックで写真を選択",null,null,null,null,null,null,null,null,null,null,"活動項目"]
[null,null,null,null,null,null,null,null,null,null,null,"取組内容",null,null,null,"活動場所"]
[null,null,null,null,null,null,null,null,null,null,null,null,null,null,null,"活動内容"]
[]
[]
[]
[]
[]
["作業中"]
[null,null,null,null,null,"令和○年○月○日"]
["ダブルクリックで写真を選択"]
[]
[]
[]
[]
[]
[]
[]
["作業後"]
[null,null,null,null,null,"令和○年○月○日"]
["ダブルクリックで写真を選択"]
[]
[]
[]
[]
[]
[]
["活動項目"]
["①：活動推進費"]
["②：地域環境保全タイプ（里山林保全）"]
["③：地域環境保全タイプ（侵入竹除去・竹林整備）"]
["④：森林資源利用タイプ　　　"]
["⑤：森林機能強化タイプ　"]
["⑥：関係人口創出・維持タイプ"]
["※活動前、活動中、活動後の状況について、それぞれ撮影すること。"]
["※写真撮影は作業起番ごとに１箇所以上で撮影すること。\n　　ただし、作業起番面積が1ha以上の場合は2箇所以上とする。"]
["（別紙３　様式第１６号　別添）"]
["作業写真整理帳（活動場所毎の作業写真）"]
[null,null,null,null,null,null,null,null,null,null,null,null,null,null,null,"№："]
[null,null,null,null,null,null,null,null,null,null,null,null,null,null,null,"組織名："]
[]
["作業前"]
[null,null,null,null,null,"令和○年○月○日"]
["ダブルクリックで写真を選択",null,null,null,null,null,null,null,null,null,null,"活動項目"]
[null,null,null,null,null,null,null,null,null,null,null,"取組内容",null,null,null,"活動場所"]
[null,null,null,null,null,null,null,null,null,null,null,null,null,null,null,"活動内容"]
[]
[]
[]
[]
[]
["作業中"]
[null,null,null,null,null,"令和○年○月○日"]
["ダブルクリックで写真を選択"]
[]
[]
[]
[]
[]
[]
[]
["作業後"]
[null,null,null,null,null,"令和○年○月○日"]
["ダブルクリックで写真を選択"]
[]
[]
[]
[]
[]
[]
["活動項目"]
["①：活動推進費"]
["②：地域環境保全タイプ（里山林保全）"]
["③：地域環境保全タイプ（侵入竹除去・竹林整備）"]
["④：森林資源利用タイプ　　　"]
["⑤：森林機能強化タイプ　"]
["⑥：関係人口創出・維持タイプ"]
["※活動前、活動中、活動後の状況について、それぞれ撮影すること。"]
["※写真撮影は作業起番ごとに１箇所以上で撮影すること。\n　　ただし、作業起番面積が1ha以上の場合は2箇所以上とする。"]

{"sheet":"活動記録人件費管理簿","index":15,"n_rows":122,"n_cols":19,"rows_kept":122,"cut":false,"hidden":false,"merged":[[20,7,20,12]]}
[null,null,null,null,null,null,null,null,null,null,null,null,null,null,1,"Aさん","活動推進"]
[null,null,null,null,null,null,null,null,null,null,null,null,null,null,2,"Bさん","環境(里山)"]
[null,null,null,null,null,null,null,null,null,null,null,null,null,null,3,"Cさん","環境(竹林)"]
[null,null,null,null,null,null,null,null,null,null,null,null,null,null,4,"Dさん","資源利用"]
[null,null,null,null,null,null,null,null,null,null,null,null,null,null,5,"Eさん","機能強化"]
[null,null,null,null,null,null,null,null,null,null,null,null,null,null,6,"Fさん","関係人口創出・維持"]
[null,null,null,null,null,null,null,null,null,null,null,null,null,null,7,"Gさん","資機材の整備"]
[null,null,null,null,null,null,null,null,null,null,null,null,null,null,8,"Hさん"]
[null,null,null,null,null,null,null,null,null,null,null,null,null,null,9,"Iさん"]
[null,null,null,null,null,null,null,null,null,null,null,null,null,null,0,"Jさん"]
[null,null,null,null,null,null,null,null,null,null,null,null,null,null,1,"Kさん"]
[null,null,null,null,null,null,null,null,null,null,null,null,null,null,2,"Lさん"]
[null,null,null,null,null,null,null,null,null,null,null,null,null,null,3,"Mさん"]
[null,null,null,null,null,null,null,null,null,null,null,null,null,null,4,"Nさん"]
[null,null,null,null,null,null,null,null,null,null,null,null,null,null,5,"Oさん"]
[]
[null,null,null,null,null,null,null,null,null,null,null,null,null,null,"➣8行目と9行目の間に行挿入して人員を追加ください"]
[]
[]
[null,null,"任意様式"]
[null,null,null,null,null,null,null,"活動記録簿　人件費管理簿"]
[null,null,"日付","曜日","開始\n時刻","終了\n時刻","内休憩\n時間","活動\n時間","活動タイプ","活動者氏名","活動場所","具体的活動内容","写真NO","時間単価","燃料","機材","交通費","日額","支出日"]
[null,null,null,{"$f":"TEXT(C23,\"AAA\")","v":"土"},null,null,null,{"$f":"F23-E23-G23","v":0},null,null,null,null,null,null,null,null,null,{"$f":"H23*N23*24+SUM(O23:Q23)","v":0}]
[null,null,null,{"$f":"TEXT(C24,\"AAA\")","v":"土"},null,null,null,{"$f":"F24-E24-G24","v":0},null,null,null,null,null,null,null,null,null,0]
[null,null,null,"土",null,null,null,0,null,null,null,null,null,null,null,null,null,0]
[null,null,null,"土",null,null,null,0,null,null,null,null,null,null,null,null,null,0]
[null,null,null,"土",null,null,null,{"$f":"F27-E27-G27","v":0},null,null,null,null,null,null,null,null,null,0]
[null,null,null,"土",null,null,null,{"$f":"F28-E28-G28","v":0},null,null,null,null,null,null,null,null,null,0]
[null,null,null,"土",null,null,null,{"$f":"F29-E29-G29","v":0},null,null,null,null,null,null,null,null,null,0]
[null,null,null,{"$f":"TEXT(C30,\"AAA\")","v":"土"},null,null,null,{"$f":"F30-E30-G30","v":0},null,null,null,null,null,null,null,null,null,0]
[null,null,null,"土",null,null,null,{"$f":"F31-E31-G31","v":0},null,null,null,null,null,null,null,null,null,0]
[null,null,null,"土",null,null,null,{"$f":"F32-E32-G32","v":0},null,null,null,null,null,null,null,null,null,0]
[null,null,null,"土",null,null,null,0,null,null,null,null,null,null,null,null,null,0]
[null,null,null,"土",null,null,null,0,null,null,null,null,null,null,null,null,null,0]
[null,null,null,"土",null,null,null,0,null,null,null,null,null,null,null,null,null,0]
[null,null,null,"土",null,null,null,{"$f":"F36-E36-G36","v":0},null,null,null,null,null,null,null,null,null,0]
[null,null,null,"土",null,null,null,0,null,null,null,null,null,null,null,null,null,0]
[null,null,null,"土",null,null,null,0,null,null,null,null,null,null,null,null,null,0]
[null,null,null,"土",null,null,null,0,null,null,null,null,null,null,null,null,null,0]
[null,null,null,"土",null,null,null,0,null,null,null,null,null,null,null,null,null,0]
[null,null,null,"土",null,null,null,0,null,null,null,null,null,null,null,null,null,0]
[null,null,null,"土",null,null,null,0,null,null,null,null,null,null,null,null,null,0]
[null,null,null,"土",null,null,null,0,null,null,null,null,null,null,null,null,null,0]
[null,null,null,{"$f":"TEXT(C44,\"AAA\")","v":"土"},null,null,null,{"$f":"F44-E44-G44","v":0},null,null,null,null,null,null,null,null,null,0]
[null,null,null,"土",null,null,null,0,null,null,null,null,null,null,null,null,null,0]
[null,null,null,"土",null,null,null,{"$f":"F46-E46-G46","v":0},null,null,null,null,null,null,null,null,null,0]
[null,null,null,"土",null,null,null,0,null,null,null,null,null,null,null,null,null,0]
[null,null,null,"土",null,null,null,0,null,null,null,null,null,null,null,null,null,0]
[null,null,null,"土",null,null,null,0,null,null,null,null,null,null,null,null,null,0]
[null,null,null,{"$f":"TEXT(C50,\"AAA\")","v":"土"},null,null,null,{"$f":"F50-E50-G50","v":0},null,null,null,null,null,null,null,null,null,0]
[null,null,null,"土",null,null,null,0,null,null,null,null,null,null,null,null,null,0]
[null,null,null,{"$f":"TEXT(C52,\"AAA\")","v":"土"},null,null,null,0,null,null,null,null,null,null,null,null,null,0]
[null,null,null,"土",null,null,null,0,null,null,null,null,null,null,null,null,null,0]
[null,null,null,{"$f":"TEXT(C54,\"AAA\")","v":"土"},null,null,null,0,null,null,null,null,null,null,null,null,null,0]
[null,null,null,{"$f":"TEXT(C55,\"AAA\")","v":"土"},null,null,null,{"$f":"F55-E55-G55","v":0},null,null,null,null,null,null,null,null,null,{"$f":"H55*N55*24+SUM(O55:Q55)","v":0}]
[null,null,null,{"$f":"TEXT(C56,\"AAA\")","v":"土"},null,null,null,{"$f":"F56-E56-G56","v":0},null,null,null,null,null,null,null,null,null,0]
[null,null,null,{"$f":"TEXT(C57,\"AAA\")","v":"土"},null,null,null,{"$f":"F57-E57-G57","v":0},null,null,null,null,null,null,null,null,null,0]
[null,null,null,{"$f":"TEXT(C58,\"AAA\")","v":"土"},null,null,null,{"$f":"F58-E58-G58","v":0},null,null,null,null,null,null,null,null,null,0]
[null,null,null,{"$f":"TEXT(C59,\"AAA\")","v":"土"},null,null,null,{"$f":"F59-E59-G59","v":0},null,null,null,null,null,null,null,null,null,0]
[null,null,null,{"$f":"TEXT(C60,\"AAA\")","v":"土"},null,null,null,{"$f":"F60-E60-G60","v":0},null,null,null,null,null,null,null,null,null,0]
[null,null,null,{"$f":"TEXT(C61,\"AAA\")","v":"土"},null,null,null,{"$f":"F61-E61-G61","v":0},null,null,null,null,null,null,null,null,null,0]
[null,null,null,{"$f":"TEXT(C62,\"AAA\")","v":"土"},null,null,null,{"$f":"F62-E62-G62","v":0},null,null,null,null,null,null,null,null,null,0]
[null,null,null,{"$f":"TEXT(C63,\"AAA\")","v":"土"},null,null,null,{"$f":"F63-E63-G63","v":0},null,null,null,null,null,null,null,null,null,0]
[null,null,null,"土",null,null,null,{"$f":"F64-E64-G64","v":0},null,null,null,null,null,null,null,null,null,0]
[null,null,null,"土",null,null,null,{"$f":"F65-E65-G65","v":0},null,null,null,null,null,null,null,null,null,0]
[null,null,null,{"$f":"TEXT(C66,\"AAA\")","v":"土"},null,null,null,{"$f":"F66-E66-G66","v":0},null,null,null,null,null,null,null,null,null,0]
[null,null,null,{"$f":"TEXT(C67,\"AAA\")","v":"土"},null,null,null,{"$f":"F67-E67-G67","v":0},null,null,null,null,null,null,null,null,null,0]
[null,null,null,{"$f":"TEXT(C68,\"AAA\")","v":"土"},null,null,null,{"$f":"F68-E68-G68","v":0},null,null,null,null,null,null,null,null,null,0]
[null,null,null,"土",null,null,null,0,null,null,null,null,null,null,null,null,null,0]
[null,null,null,"土",null,null,null,0,null,null,null,null,null,null,null,null,null,0]
[null,null,null,{"$f":"TEXT(C71,\"AAA\")","v":"土"},null,null,null,{"$f":"F71-E71-G71","v":0},null,null,null,null,null,null,null,null,null,0]
[null,null,null,{"$f":"TEXT(C72,\"AAA\")","v":"土"},null,null,null,{"$f":"F72-E72-G72","v":0},null,null,null,null,null,null,null,null,null,0]
[null,null,null,{"$f":"TEXT(C73,\"AAA\")","v":"土"},null,null,null,{"$f":"F73-E73-G73","v":0},null,null,null,null,null,null,null,null,null,0]
[null,null,null,"土",null,null,null,0,null,null,null,null,null,null,null,null,null,0]
[null,null,null,"土",null,null,null,0,null,null,null,null,null,null,null,null,null,0]
[null,null,null,"土",null,null,null,0,null,null,null,null,null,null,null,null,null,0]
[null,null,null,{"$f":"TEXT(C77,\"AAA\")","v":"土"},null,null,null,{"$f":"F77-E77-G77","v":0},null,null,null,null,null,null,null,null,null,0]
[null,null,null,{"$f":"TEXT(C78,\"AAA\")","v":"土"},null,null,null,{"$f":"F78-E78-G78","v":0},null,null,null,null,null,null,null,null,null,0]
[null,null,null,{"$f":"TEXT(C79,\"AAA\")","v":"土"},null,null,null,{"$f":"F79-E79-G79","v":0},null,null,null,null,null,null,null,null,null,0]
[null,null,null,"土",null,null,null,0,null,null,null,null,null,null,null,null,null,0]
[null,null,null,"土",null,null,null,0,null,null,null,null,null,null,null,null,null,0]
[null,null,null,"土",null,null,null,0,null,null,null,null,null,null,null,null,null,0]
[null,null,null,{"$f":"TEXT(C83,\"AAA\")","v":"土"},null,null,null,{"$f":"F83-E83-G83","v":0},null,null,null,null,null,null,null,null,null,0]
[null,null,null,{"$f":"TEXT(C84,\"AAA\")","v":"土"},null,null,null,{"$f":"F84-E84-G84","v":0},null,null,null,null,null,null,null,null,null,0]
[null,null,null,{"$f":"TEXT(C85,\"AAA\")","v":"土"},null,null,null,{"$f":"F85-E85-G85","v":0},null,null,null,null,null,null,null,null,null,0]
[null,null,null,"土",null,null,null,{"$f":"F86-E86-G86","v":0},null,null,null,null,null,null,null,null,null,0]
[null,null,null,"土",null,null,null,{"$f":"F87-E87-G87","v":0},null,null,null,null,null,null,null,null,null,{"$f":"H87*N87*24+SUM(O87:Q87)","v":0}]
[null,null,null,"土",null,null,null,{"$f":"F88-E88-G88","v":0},null,null,null,null,null,null,null,null,null,0]
[null,null,null,{"$f":"TEXT(C89,\"AAA\")","v":"土"},null,null,null,{"$f":"F89-E89-G89","v":0},null,null,null,null,null,null,null,null,null,0]
[null,null,null,{"$f":"TEXT(C90,\"AAA\")","v":"土"},null,null,null,{"$f":"F90-E90-G90","v":0},null,null,null,null,null,null,null,null,null,0]
[null,null,null,{"$f":"TEXT(C91,\"AAA\")","v":"土"},null,null,null,0,null,null,null,null,null,null,null,null,null,0]
[null,null,null,{"$f":"TEXT(C92,\"AAA\")","v":"土"},null,null,null,{"$f":"F92-E92-G92","v":0},null,null,null,null,null,null,null,null,null,0]
[null,null,null,"土",null,null,null,0,null,null,null,null,null,null,null,null,null,0]
[null,null,null,{"$f":"TEXT(C94,\"AAA\")","v":"土"},null,null,null,{"$f":"F94-E94-G94","v":0},null,null,null,null,null,null,null,null,null,0]
[null,null,null,{"$f":"TEXT(C95,\"AAA\")","v":"土"},null,null,null,{"$f":"F95-E95-G95","v":0},null,null,null,null,null,null,null,null,null,0]
[null,null,null,{"$f":"TEXT(C96,\"AAA\")","v":"土"},null,null,null,{"$f":"F96-E96-G96","v":0},null,null,null,null,null,null,null,null,null,0]
[null,null,null,"土",null,null,null,0,null,null,null,null,null,null,null,null,null,0]
[null,null,null,{"$f":"TEXT(C98,\"AAA\")","v":"土"},null,null,null,{"$f":"F98-E98-G98","v":0},null,null,null,null,null,null,null,null,null,0]
[null,null,null,"土",null,null,null,0,null,null,null,null,null,null,null,null,null,0]
[null,null,null,{"$f":"TEXT(C100,\"AAA\")","v":"土"},null,null,null,{"$f":"F100-E100-G100","v":0},null,null,null,null,null,null,null,null,null,0]
[null,null,null,"土",null,null,null,0,null,null,null,null,null,null,null,null,null,0]
[null,null,null,"土",null,null,null,0,null,null,null,null,null,null,null,null,null,0]
[null,null,null,"土",null,null,null,0,null,null,null,null,null,null,null,null,null,0]
[null,null,null,{"$f":"TEXT(C104,\"AAA\")","v":"土"},null,null,null,{"$f":"F104-E104-G104","v":0},null,null,null,null,null,null,null,null,null,0]
[null,null,null,{"$f":"TEXT(C105,\"AAA\")","v":"土"},null,null,null,{"$f":"F105-E105-G105","v":0},null,null,null,null,null,null,null,null,null,0]
[null,null,null,{"$f":"TEXT(C106,\"AAA\")","v":"土"},null,null,null,{"$f":"F106-E106-G106","v":0},null,null,null,null,null,null,null,null,null,0]
[null,null,null,"土",null,null,null,0,null,null,null,null,null,null,null,null,null,0]
[null,null,null,"土",null,null,null,{"$f":"F108-E108-G108","v":0},null,null,null,null,null,null,null,null,null,0]
[null,null,null,{"$f":"TEXT(C109,\"AAA\")","v":"土"},null,null,null,{"$f":"F109-E109-G109","v":0},null,null,null,null,null,null,null,null,null,0]
[null,null,null,{"$f":"TEXT(C110,\"AAA\")","v":"土"},null,null,null,0,null,null,null,null,null,null,null,null,null,0]
[null,null,null,{"$f":"TEXT(C111,\"AAA\")","v":"土"},null,null,null,{"$f":"F111-E111-G111","v":0},null,null,null,null,null,null,null,null,null,0]
[null,null,null,"土",null,null,null,0,null,null,null,null,null,null,null,null,null,0]
[null,null,null,{"$f":"TEXT(C113,\"AAA\")","v":"土"},null,null,null,{"$f":"F113-E113-G113","v":0},null,null,null,null,null,null,null,null,null,0]
[null,null,null,"土",null,null,null,0,null,null,null,null,null,null,null,null,null,0]
[null,null,null,"土",null,null,null,0,null,null,null,null,null,null,null,null,null,0]
[null,null,null,"土",null,null,null,0,null,null,null,null,null,null,null,null,null,0]
[null,null,null,"土",null,null,null,0,null,null,null,null,null,null,null,null,null,0]
[null,null,null,"土",null,null,null,0,null,null,null,null,null,null,null,null,null,0]
[null,null,null,"土",null,null,null,0,null,null,null,null,null,null,null,null,null,{"$f":"H119*N119*24+SUM(O119:Q119)","v":0}]
[null,null,null,"土",null,null,null,0,null,null,null,null,null,null,null,null,null,0]
[null,null,null,"土",null,null,null,0,null,null,null,null,null,null,null,null,null,0]
[null,null,"計",null,null,null,null,{"$f":"SUBTOTAL(9,H23:H121)","v":0},null,null,null,null,null,null,{"$f":"SUBTOTAL(9,O23:O121)","v":0},{"$f":"SUBTOTAL(9,P23:P121)","v":0},{"$f":"SUBTOTAL(9,Q23:Q121)","v":0},{"$f":"SUBTOTAL(9,R23:R121)","v":0}]

{"sheet":"地域外関係者","index":16,"n_rows":14,"n_cols":7,"rows_kept":14,"cut":false,"hidden":false,"merged":[[17,3,17,5],[9,2,9,6],[13,3,13,5],[14,3,14,5],[15,3,15,5],[16,3,16,5],[29,3,29,5],[18,3,18,5],[22,3,22,5],[23,3,23,5],[24,3,24,5],[25,3,25,5],[26,3,26,5],[27,3,27,5],[28,3,28,5],[19,3,19,5],[20,3,20,5],[21,3,21,5]]}
[]
[]
[]
[null,null,"任意様式"]
[]
[null,null,null,null,null,null,"令和　年　　月　　日"]
[]
[null,null,"関係人口創出タイプ利用"]
[]
[null,null,"地域外関係者　参加名簿"]
[]
[null,"１．参加者（構成員以外）　10名以上であること。"]
[]
[null,null,"氏名","住所",null,null,"備考"]

{"sheet":"再掲表","index":17,"n_rows":23,"n_cols":14,"rows_kept":23,"cut":false,"hidden":false,"merged":[]}
[]
[]
[]
[]
[]
[null,null,null,null,null,null,"↓黄色のセルに支払日を入力してください"]
[]
[null,"タイプ毎再掲",null,"※時間は10進法表示","（支払日よる左の内訳）"]
[null,"タイプ","延べ時間","金額","2024-01-31",null,null,null,null,null,null,null,"未払"]
[null,"活動推進",{"$f":"SUMIF(活動記録人件費管理簿!$I$20:$I$160,B10,活動記録人件費管理簿!$H$20:$H$160)*24","v":0},{"$f":"SUMIF(活動記録人件費管理簿!$I$20:$I$121,B10,活動記録人件費管理簿!$R$20:$R$121)","v":0},{"$f":"SUMIFS(活動記録人件費管理簿!$R$20:$R$160,活動記録人件費管理簿!$S$20:$S$160,E$9,活動記録人件費管理簿!$I$20:$I$160,$B10)","v":0},{"$f":"SUMIFS(活動記録人件費管理簿!$R$20:$R$160,活動記録人件費管理簿!$S$20:$S$160,F$9,活動記録人件費管理簿!$I$20:$I$160,$B10)","v":0},{"$f":"SUMIFS(活動記録人件費管理簿!$R$20:$R$160,活動記録人件費管理簿!$S$20:$S$160,G$9,活動記録人件費管理簿!$I$20:$I$160,$B10)","v":0},{"$f":"SUMIFS(活動記録人件費管理簿!$R$20:$R$160,活動記録人件費管理簿!$S$20:$S$160,H$9,活動記録人件費管理簿!$I$20:$I$160,$B10)","v":0},{"$f":"SUMIFS(活動記録人件費管理簿!$R$20:$R$160,活動記録人件費管理簿!$S$20:$S$160,I$9,活動記録人件費管理簿!$I$20:$I$160,$B10)","v":0},{"$f":"SUMIFS(活動記録人件費管理簿!$R$20:$R$160,活動記録人件費管理簿!$S$20:$S$160,J$9,活動記録人件費管理簿!$I$20:$I$160,$B10)","v":0},{"$f":"SUMIFS(活動記録人件費管理簿!$R$20:$R$160,活動記録人件費管理簿!$S$20:$S$160,K$9,活動記録人件費管理簿!$I$20:$I$160,$B10)","v":0},{"$f":"SUMIFS(活動記録人件費管理簿!$R$20:$R$160,活動記録人件費管理簿!$S$20:$S$160,L$9,活動記録人件費管理簿!$I$20:$I$160,$B10)","v":0},{"$f":"SUMIFS(活動記録人件費管理簿!$R$20:$R$160,活動記録人件費管理簿!$S$20:$S$160,M$9,活動記録人件費管理簿!$I$20:$I$160,$B10)","v":0},{"$f":"SUM(E10:L10)","v":0}]
[null,"環境(里山)",{"$f":"SUMIF(活動記録人件費管理簿!$I$20:$I$160,B11,活動記録人件費管理簿!$H$20:$H$160)*24","v":0},{"$f":"SUMIF(活動記録人件費管理簿!$I$20:$I$121,B11,活動記録人件費管理簿!$R$20:$R$121)","v":0},{"$f":"SUMIFS(活動記録人件費管理簿!$R$20:$R$160,活動記録人件費管理簿!$S$20:$S$160,E$9,活動記録人件費管理簿!$I$20:$I$160,$B11)","v":0},{"$f":"SUMIFS(活動記録人件費管理簿!$R$20:$R$160,活動記録人件費管理簿!$S$20:$S$160,F$9,活動記録人件費管理簿!$I$20:$I$160,$B11)","v":0},{"$f":"SUMIFS(活動記録人件費管理簿!$R$20:$R$160,活動記録人件費管理簿!$S$20:$S$160,G$9,活動記録人件費管理簿!$I$20:$I$160,$B11)","v":0},{"$f":"SUMIFS(活動記録人件費管理簿!$R$20:$R$160,活動記録人件費管理簿!$S$20:$S$160,H$9,活動記録人件費管理簿!$I$20:$I$160,$B11)","v":0},{"$f":"SUMIFS(活動記録人件費管理簿!$R$20:$R$160,活動記録人件費管理簿!$S$20:$S$160,I$9,活動記録人件費管理簿!$I$20:$I$160,$B11)","v":0},{"$f":"SUMIFS(活動記録人件費管理簿!$R$20:$R$160,活動記録人件費管理簿!$S$20:$S$160,J$9,活動記録人件費管理簿!$I$20:$I$160,$B11)","v":0},{"$f":"SUMIFS(活動記録人件費管理簿!$R$20:$R$160,活動記録人件費管理簿!$S$20:$S$160,K$9,活動記録人件費管理簿!$I$20:$I$160,$B11)","v":0},{"$f":"SUMIFS(活動記録人件費管理簿!$R$20:$R$160,活動記録人件費管理簿!$S$20:$S$160,L$9,活動記録人件費管理簿!$I$20:$I$160,$B11)","v":0},{"$f":"SUMIFS(活動記録人件費管理簿!$R$20:$R$160,活動記録人件費管理簿!$S$20:$S$160,M$9,活動記録人件費管理簿!$I$20:$I$160,$B11)","v":0},{"$f":"SUM(E11:L11)","v":0}]
[null,"環境(竹林)",{"$f":"SUMIF(活動記録人件費管理簿!$I$20:$I$160,B12,活動記録人件費管理簿!$H$20:$H$160)*24","v":0},{"$f":"SUMIF(活動記録人件費管理簿!$I$20:$I$121,B12,活動記録人件費管理簿!$R$20:$R$121)","v":0},{"$f":"SUMIFS(活動記録人件費管理簿!$R$20:$R$160,活動記録人件費管理簿!$S$20:$S$160,E$9,活動記録人件費管理簿!$I$20:$I$160,$B12)","v":0},{"$f":"SUMIFS(活動記録人件費管理簿!$R$20:$R$160,活動記録人件費管理簿!$S$20:$S$160,F$9,活動記録人件費管理簿!$I$20:$I$160,$B12)","v":0},{"$f":"SUMIFS(活動記録人件費管理簿!$R$20:$R$160,活動記録人件費管理簿!$S$20:$S$160,G$9,活動記録人件費管理簿!$I$20:$I$160,$B12)","v":0},{"$f":"SUMIFS(活動記録人件費管理簿!$R$20:$R$160,活動記録人件費管理簿!$S$20:$S$160,H$9,活動記録人件費管理簿!$I$20:$I$160,$B12)","v":0},{"$f":"SUMIFS(活動記録人件費管理簿!$R$20:$R$160,活動記録人件費管理簿!$S$20:$S$160,I$9,活動記録人件費管理簿!$I$20:$I$160,$B12)","v":0},{"$f":"SUMIFS(活動記録人件費管理簿!$R$20:$R$160,活動記録人件費管理簿!$S$20:$S$160,J$9,活動記録人件費管理簿!$I$20:$I$160,$B12)","v":0},{"$f":"SUMIFS(活動記録人件費管理簿!$R$20:$R$160,活動記録人件費管理簿!$S$20:$S$160,K$9,活動記録人件費管理簿!$I$20:$I$160,$B12)","v":0},{"$f":"SUMIFS(活動記録人件費管理簿!$R$20:$R$160,活動記録人件費管理簿!$S$20:$S$160,L$9,活動記録人件費管理簿!$I$20:$I$160,$B12)","v":0},{"$f":"SUMIFS(活動記録人件費管理簿!$R$20:$R$160,活動記録人件費管理簿!$S$20:$S$160,M$9,活動記録人件費管理簿!$I$20:$I$160,$B12)","v":0},0]
[null,"資源利用",{"$f":"SUMIF(活動記録人件費管理簿!$I$20:$I$160,B13,活動記録人件費管理簿!$H$20:$H$160)*24","v":0},{"$f":"SUMIF(活動記録人件費管理簿!$I$20:$I$121,B13,活動記録人件費管理簿!$R$20:$R$121)","v":0},{"$f":"SUMIFS(活動記録人件費管理簿!$R$20:$R$160,活動記録人件費管理簿!$S$20:$S$160,E$9,活動記録人件費管理簿!$I$20:$I$160,$B13)","v":0},{"$f":"SUMIFS(活動記録人件費管理簿!$R$20:$R$160,活動記録人件費管理簿!$S$20:$S$160,F$9,活動記録人件費管理簿!$I$20:$I$160,$B13)","v":0},{"$f":"SUMIFS(活動記録人件費管理簿!$R$20:$R$160,活動記録人件費管理簿!$S$20:$S$160,G$9,活動記録人件費管理簿!$I$20:$I$160,$B13)","v":0},{"$f":"SUMIFS(活動記録人件費管理簿!$R$20:$R$160,活動記録人件費管理簿!$S$20:$S$160,H$9,活動記録人件費管理簿!$I$20:$I$160,$B13)","v":0},{"$f":"SUMIFS(活動記録人件費管理簿!$R$20:$R$160,活動記録人件費管理簿!$S$20:$S$160,I$9,活動記録人件費管理簿!$I$20:$I$160,$B13)","v":0},{"$f":"SUMIFS(活動記録人件費管理簿!$R$20:$R$160,活動記録人件費管理簿!$S$20:$S$160,J$9,活動記録人件費管理簿!$I$20:$I$160,$B13)","v":0},{"$f":"SUMIFS(活動記録人件費管理簿!$R$20:$R$160,活動記録人件費管理簿!$S$20:$S$160,K$9,活動記録人件費管理簿!$I$20:$I$160,$B13)","v":0},{"$f":"SUMIFS(活動記録人件費管理簿!$R$20:$R$160,活動記録人件費管理簿!$S$20:$S$160,L$9,活動記録人件費管理簿!$I$20:$I$160,$B13)","v":0},{"$f":"SUMIFS(活動記録人件費管理簿!$R$20:$R$160,活動記録人件費管理簿!$S$20:$S$160,M$9,活動記録人件費管理簿!$I$20:$I$160,$B13)","v":0},0]
[null,"機能強化",{"$f":"SUMIF(活動記録人件費管理簿!$I$20:$I$160,B14,活動記録人件費管理簿!$H$20:$H$160)*24","v":0},{"$f":"SUMIF(活動記録人件費管理簿!$I$20:$I$121,B14,活動記録人件費管理簿!$R$20:$R$121)","v":0},{"$f":"SUMIFS(活動記録人件費管理簿!$R$20:$R$160,活動記録人件費管理簿!$S$20:$S$160,E$9,活動記録人件費管理簿!$I$20:$I$160,$B14)","v":0},{"$f":"SUMIFS(活動記録人件費管理簿!$R$20:$R$160,活動記録人件費管理簿!$S$20:$S$160,F$9,活動記録人件費管理簿!$I$20:$I$160,$B14)","v":0},{"$f":"SUMIFS(活動記録人件費管理簿!$R$20:$R$160,活動記録人件費管理簿!$S$20:$S$160,G$9,活動記録人件費管理簿!$I$20:$I$160,$B14)","v":0},{"$f":"SUMIFS(活動記録人件費管理簿!$R$20:$R$160,活動記録人件費管理簿!$S$20:$S$160,H$9,活動記録人件費管理簿!$I$20:$I$160,$B14)","v":0},{"$f":"SUMIFS(活動記録人件費管理簿!$R$20:$R$160,活動記録人件費管理簿!$S$20:$S$160,I$9,活動記録人件費管理簿!$I$20:$I$160,$B14)","v":0},{"$f":"SUMIFS(活動記録人件費管理簿!$R$20:$R$160,活動記録人件費管理簿!$S$20:$S$160,J$9,活動記録人件費管理簿!$I$20:$I$160,$B14)","v":0},{"$f":"SUMIFS(活動記録人件費管理簿!$R$20:$R$160,活動記録人件費管理簿!$S$20:$S$160,K$9,活動記録人件費管理簿!$I$20:$I$160,$B14)","v":0},{"$f":"SUMIFS(活動記録人件費管理簿!$R$20:$R$160,活動記録人件費管理簿!$S$20:$S$160,L$9,活動記録人件費管理簿!$I$20:$I$160,$B14)","v":0},{"$f":"SUMIFS(活動記録人件費管理簿!$R$20:$R$160,活動記録人件費管理簿!$S$20:$S$160,M$9,活動記録人件費管理簿!$I$20:$I$160,$B14)","v":0},0]
[null,"関係人口創出・維持",{"$f":"SUMIF(活動記録人件費管理簿!$I$20:$I$160,B15,活動記録人件費管理簿!$H$20:$H$160)*24","v":0},{"$f":"SUMIF(活動記録人件費管理簿!$I$20:$I$121,B15,活動記録人件費管理簿!$R$20:$R$121)","v":0},{"$f":"SUMIFS(活動記録人件費管理簿!$R$20:$R$160,活動記録人件費管理簿!$S$20:$S$160,E$9,活動記録人件費管理簿!$I$20:$I$160,$B15)","v":0},{"$f":"SUMIFS(活動記録人件費管理簿!$R$20:$R$160,活動記録人件費管理簿!$S$20:$S$160,F$9,活動記録人件費管理簿!$I$20:$I$160,$B15)","v":0},{"$f":"SUMIFS(活動記録人件費管理簿!$R$20:$R$160,活動記録人件費管理簿!$S$20:$S$160,G$9,活動記録人件費管理簿!$I$20:$I$160,$B15)","v":0},{"$f":"SUMIFS(活動記録人件費管理簿!$R$20:$R$160,活動記録人件費管理簿!$S$20:$S$160,H$9,活動記録人件費管理簿!$I$20:$I$160,$B15)","v":0},{"$f":"SUMIFS(活動記録人件費管理簿!$R$20:$R$160,活動記録人件費管理簿!$S$20:$S$160,I$9,活動記録人件費管理簿!$I$20:$I$160,$B15)","v":0},{"$f":"SUMIFS(活動記録人件費管理簿!$R$20:$R$160,活動記録人件費管理簿!$S$20:$S$160,J$9,活動記録人件費管理簿!$I$20:$I$160,$B15)","v":0},{"$f":"SUMIFS(活動記録人件費管理簿!$R$20:$R$160,活動記録人件費管理簿!$S$20:$S$160,K$9,活動記録人件費管理簿!$I$20:$I$160,$B15)","v":0},{"$f":"SUMIFS(活動記録人件費管理簿!$R$20:$R$160,活動記録人件費管理簿!$S$20:$S$160,L$9,活動記録人件費管理簿!$I$20:$I$160,$B15)","v":0},{"$f":"SUMIFS(活動記録人件費管理簿!$R$20:$R$160,活動記録人件費管理簿!$S$20:$S$160,M$9,活動記録人件費管理簿!$I$20:$I$160,$B15)","v":0}]
[null,"資機材の整備",{"$f":"SUMIF(活動記録人件費管理簿!$I$20:$I$160,B16,活動記録人件費管理簿!$H$20:$H$160)*24","v":0},{"$f":"SUMIF(活動記録人件費管理簿!$I$20:$I$121,B16,活動記録人件費管理簿!$R$20:$R$121)","v":0},{"$f":"SUMIFS(活動記録人件費管理簿!$R$20:$R$160,活動記録人件費管理簿!$S$20:$S$160,E$9,活動記録人件費管理簿!$I$20:$I$160,$B16)","v":0},{"$f":"SUMIFS(活動記録人件費管理簿!$R$20:$R$160,活動記録人件費管理簿!$S$20:$S$160,F$9,活動記録人件費管理簿!$I$20:$I$160,$B16)","v":0},{"$f":"SUMIFS(活動記録人件費管理簿!$R$20:$R$160,活動記録人件費管理簿!$S$20:$S$160,G$9,活動記録人件費管理簿!$I$20:$I$160,$B16)","v":0},{"$f":"SUMIFS(活動記録人件費管理簿!$R$20:$R$160,活動記録人件費管理簿!$S$20:$S$160,H$9,活動記録人件費管理簿!$I$20:$I$160,$B16)","v":0},{"$f":"SUMIFS(活動記録人件費管理簿!$R$20:$R$160,活動記録人件費管理簿!$S$20:$S$160,I$9,活動記録人件費管理簿!$I$20:$I$160,$B16)","v":0},{"$f":"SUMIFS(活動記録人件費管理簿!$R$20:$R$160,活動記録人件費管理簿!$S$20:$S$160,J$9,活動記録人件費管理簿!$I$20:$I$160,$B16)","v":0},{"$f":"SUMIFS(活動記録人件費管理簿!$R$20:$R$160,活動記録人件費管理簿!$S$20:$S$160,K$9,活動記録人件費管理簿!$I$20:$I$160,$B16)","v":0},{"$f":"SUMIFS(活動記録人件費管理簿!$R$20:$R$160,活動記録人件費管理簿!$S$20:$S$160,L$9,活動記録人件費管理簿!$I$20:$I$160,$B16)","v":0},{"$f":"SUMIFS(活動記録人件費管理簿!$R$20:$R$160,活動記録人件費管理簿!$S$20:$S$160,M$9,活動記録人件費管理簿!$I$20:$I$160,$B16)","v":0},0]
[null,"合計",{"$f":"SUM(C10:C16)","v":0},0,0,0,0,0,0,0,0,0,0,0]
[null,null,null,null,null,null,null,null,null,null,null,null,{"$f":"SUM(E17:M17)","v":0}]
[]
[]
[]
[null,"注）D列の金額欄は出納簿の再掲欄の人件費と合うはずです"]
[null,"E６、F6、G6等　通帳での支払日を記入ください。"]

{"sheet":"金銭出納簿 (その都度立替)","index":18,"n_rows":49,"n_cols":15,"rows_kept":49,"cut":false,"hidden":false,"merged":[[10,14,11,14],[8,0,8,13],[10,0,11,1],[10,2,11,2],[10,3,11,3],[10,4,11,4],[10,5,11,5],[10,6,10,9],[10,10,11,10],[10,11,11,11],[10,12,11,12],[46,11,46,12],[10,13,11,13],[38,0,38,1],[38,11,38,12],[39,0,39,1],[39,11,39,12],[40,11,40,12],[41,11,41,12],[42,11,42,12],[43,11,43,12],[44,11,44,12],[45,11,45,12]]}
[null,null,null,null,null,null,null,null,null,null,null,null,null,null,"活動推進"]
[null,null,null,null,null,null,null,null,null,null,null,null,null,null,"環境(里山)"]
[null,null,null,null,null,null,null,null,null,null,null,null,null,null,"環境(竹林)"]
[null,null,null,null,null,null,null,null,null,null,null,null,null,null,"資源利用"]
[null,null,null,null,null,null,null,null,null,null,null,null,null,null,"機能強化"]
[null,null,null,null,null,null,null,null,null,null,null,null,null,null,"関係人口創出・維持"]
[null,null,null,"通帳の当該年度の箇所コピーして提出",null,null,null,null,null,null,null,null,null,null,"資機材の整備"]
["（別紙3　様式17号）"]
[{"$f":"\"令和\"&基本情報!C18&\"年度　森林・山村多面的機能発揮対策交付金（金銭出納簿）\"","v":"令和年度　森林・山村多面的機能発揮対策交付金（金銭出納簿）"}]
[]
["日付",null,"タイプ","内容","収入\n（円）","立替\n（円）","支出（円）",null,null,null,"資機材購入費のうち交付金充当額","領収書等\n番号","活動\n実施日","備考\n(財産の保管場所)","残高"]
[null,null,null,null,null,null,"人件費","委託費","その他","資機材の\n購入等"]
[null,{"$f":"TEXT(A13,\"(AAA)\")","v":"(土)"},null,null,null,null,null,null,null,null,null,null,null,null,{"$f":"E13+F13-SUM(G13:J13)","v":0}]
[null,{"$f":"TEXT(A14,\"(AAA)\")","v":"(土)"},null,null,null,null,null,null,null,null,null,null,null,null,{"$f":"IF((OFFSET(O14,-1,0)+(E14+F14)-SUM(G14:J14))>=0,OFFSET(O14,-1,0)+(E14+F14)-SUM(G14:J14),\"\")","v":0}]
[null,{"$f":"TEXT(A15,\"(AAA)\")","v":"(土)"},null,null,null,null,null,null,null,null,null,null,null,null,{"$f":"IF((OFFSET(O15,-1,0)+(E15+F15)-SUM(G15:J15))>=0,OFFSET(O15,-1,0)+(E15+F15)-SUM(G15:J15),\"\")","v":0}]
[null,"(土)",null,null,null,null,null,null,null,null,null,null,null,null,0]
[null,"(土)",null,null,null,null,null,null,null,null,null,null,null,null,0]
[null,"(土)",null,null,null,null,null,null,null,null,null,null,null,null,0]
[null,"(土)",null,null,null,null,null,null,null,null,null,null,null,null,0]
[null,{"$f":"TEXT(A20,\"(AAA)\")","v":"(土)"},null,null,null,null,null,null,null,null,null,null,null,null,0]
[null,"(土)",null,null,null,null,null,null,null,null,null,null,null,null,0]
[null,"(土)",null,null,null,null,null,null,null,null,null,null,null,null,0]
[null,"(土)",null,null,null,null,null,null,null,null,null,null,null,null,0]
[null,{"$f":"TEXT(A24,\"(AAA)\")","v":"(土)"},null,null,null,null,null,null,null,null,null,null,null,null,0]
[null,"(土)",null,null,null,null,null,null,null,null,null,null,null,null,0]
[null,"(土)",null,null,null,null,null,null,null,null,null,null,null,null,0]
[null,{"$f":"TEXT(A27,\"(AAA)\")","v":"(土)"},null,null,null,null,null,null,null,null,null,null,null,null,{"$f":"IF((OFFSET(O27,-1,0)+(E27+F27)-SUM(G27:J27))>=0,OFFSET(O27,-1,0)+(E27+F27)-SUM(G27:J27),\"\")","v":0}]
[null,"(土)",null,null,null,null,null,null,null,null,null,null,null,null,0]
[null,"(土)",null,null,null,null,null,null,null,null,null,null,null,null,0]
[null,{"$f":"TEXT(A30,\"(AAA)\")","v":"(土)"},null,null,null,null,null,null,null,null,null,null,null,null,0]
[null,{"$f":"TEXT(A31,\"(AAA)\")","v":"(土)"},null,null,null,null,null,null,null,null,null,null,null,null,0]
[null,"(土)",null,null,null,null,null,null,null,null,null,null,null,null,0]
[null,"(土)",null,null,null,null,null,null,null,null,null,null,null,null,0]
[null,"(土)",null,null,null,null,null,null,null,null,null,null,null,null,0]
[null,"(土)",null,null,null,null,null,null,null,null,null,null,null,null,0]
[null,"(土)",null,null,null,null,null,null,null,null,null,null,null,null,0]
["計",null,null,null,{"$f":"SUM(E13:E36)","v":0},0,0,0,0,0,0]
[]
[null,null,"タイプ",null,"交付金額",null,"人件費","委託費","その他","資機材の\n購入等","資機材購入費のうち\n交付金充当額","合計",null,"判定"]
["【再掲】",null,"活動推進",null,{"$f":"採択申請!$G$33","v":0},null,{"$f":"SUMIF($C$13:$C$37,C40,$G$13:$G$37)","v":0},{"$f":"SUMIF($C$13:$C$37,C40,$H$13:$H$37)","v":0},{"$f":"SUMIF($C$13:$C$37,C40,$I$13:$I$37)","v":0},"-","-",{"$f":"SUM(G40:I40)","v":0},null,{"$f":"IF(E40=0,\"\",IF(L40>E40,\"〇\",\"交付金減額\"))","v":""}]
[null,null,"環境(里山)",null,{"$f":"採択申請!$G$35","v":120000},null,0,0,0,"-","-",{"$f":"SUM(G41:I41)","v":0},null,{"$f":"IF(E41=0,\"\",IF(L41>E41,\"〇\",\"交付金減額\"))","v":"交付金減額"}]
[null,null,"環境(竹林)",null,{"$f":"採択申請!$G$38","v":0},null,0,0,0,"-","-",0,null,""]
[null,null,"資源利用",null,{"$f":"採択申請!$G$41","v":0},null,0,0,0,"-","-",0,null,""]
[null,null,"機能強化",null,{"$f":"採択申請!$G$43","v":0},null,0,0,0,"-","-",0,null,""]
[null,null,"関係人口創出・維持",null,{"$f":"採択申請!$G$44","v":0},null,0,0,0,"-","-",0,null,""]
[null,null,"資機材の整備",null,{"$f":"採択申請!$G$46","v":0},null,"-","-","-",{"$f":"SUMIF($C$13:$C$37,C46,$J$13:$J$37)","v":0},{"$f":"SUMIF($C$13:$C$37,C46,$K$13:$K$37)","v":0},{"$f":"J46","v":0},null,{"$f":"IF(E46=0,\"\",IF(L46>E46*2,\"〇\",\"交付金減額\"))","v":""}]
[null,null,"合　　計",null,{"$f":"SUM(E40:E46)","v":120000},null,{"$f":"SUM(G40:G46)","v":0},{"$f":"SUM(H40:H46)","v":0},0,0,0,{"$f":"SUM(L40:M46)","v":0}]
[null,null,null,null,null,null,null,null,null,null,"↑"]
[null,null,null,null,null,null,null,null,null,null,"この列は合計に含めない"]

{"sheet":"モニタリング１","index":19,"n_rows":49,"n_cols":10,"rows_kept":49,"cut":false,"hidden":false,"merged":[[4,1,4,10],[9,4,9,10],[48,1,49,10],[25,1,27,3],[35,1,37,3],[7,1,7,2],[8,1,8,2],[7,3,7,10],[8,3,8,10],[12,1,17,3],[12,4,17,6],[12,8,17,10],[20,4,23,6],[24,4,24,6],[25,4,27,6],[20,8,27,10]]}
[]
[]
[]
[null,"（別紙３　様式第18号）"]
[null,"令和５年度　モニタリング結果報告書"]
[]
[null,"１　活動の目標"]
[null,"タイプ名："]
[null,"目標："]
[null,"モニタリング調査方法："]
[]
[null,"２　活動実施前の標準地の状況（令和　　年度）　"]
[null,"標準地の状況を記載",null,null,null,null,null,null,"写真"]
[]
[]
[]
[]
[]
[]
[null,"３　活動計画１年目の標準地の状況（令和　年度）　"]
[null,null,null,null,null,null,null,null,"写真"]
[null,"標準地の状況を記載"]
[]
[]
[null,"目標達成度"]
[null,"次年度に向けた改善策"]
[]
[]
[]
[null,"４　活動計画２年目の標準地の状況（令和〇年度）　"]
[]
[null,"標準地の状況を記載"]
[null,null,null,null,null,null,null,null,null,"写真"]
[]
[null,"目標達成度"]
[null,"次年度に向けた改善策"]
[]
[]
[]
[null,"５　活動計画３年目の標準地の状況（令和〇年度）　"]
[]
[null,"標準地の状況を記載"]
[null,null,null,null,null,null,null,null,null,"写真"]
[]
[]
[]
[null,"目標達成度"]
[]
[null,"（注）目標の設定及び標準地の状況の記載については、別に定めるガイドラインを参考とすること。"]

{"sheet":"効果チェックシート","index":20,"n_rows":115,"n_cols":36,"rows_kept":115,"cut":false,"hidden":false,"merged":[[91,1,91,14],[91,15,91,18],[91,19,91,22],[91,23,91,26],[89,1,89,14],[89,15,89,18],[89,19,89,22],[89,23,89,26],[90,1,90,14],[90,15,90,18],[90,19,90,22],[90,23,90,26],[87,1,87,14],[87,15,87,18],[87,19,87,22],[87,23,87,26],[88,1,88,14],[88,19,88,22],[88,23,88,26],[74,2,76,26],[85,1,85,14],[85,15,85,18],[85,19,85,22],[85,23,85,26],[86,1,86,14],[86,15,86,18],[86,19,86,22],[86,23,86,26],[67,1,67,27],[68,2,68,27],[69,2,69,27],[70,2,70,27],[71,2,71,27],[72,2,72,27],[51,1,52,27],[53,1,56,13],[53,14,56,27],[57,1,64,13],[57,14,59,27],[60,14,62,27],[63,14,64,27],[26,1,30,1],[26,2,26,24],[44,25,44,27],[45,2,45,24],[45,25,45,27],[46,1,46,27],[47,1,47,28],[48,1,48,27],[40,2,40,24],[40,25,40,27],[41,1,45,1],[41,2,41,24],[41,25,41,27],[42,2,42,24],[42,25,42,27],[43,2,43,24],[43,25,43,27],[44,2,44,24],[35,25,35,27],[36,1,40,1],[36,2,36,24],[36,25,36,27],[37,2,37,24],[37,25,37,27],[38,2,38,24],[38,25,38,27],[39,2,39,24],[39,25,39,27],[31,1,35,1],[31,2,31,24],[31,25,31,27],[32,2,32,24],[32,25,32,27],[33,2,33,24],[33,25,33,27],[34,2,34,24],[34,25,34,27],[35,2,35,24],[18,1,18,28],[19,1,20,1],[19,2,20,24],[19,25,20,27],[21,1,25,1],[21,2,21,24],[21,25,21,27],[22,2,22,24],[22,25,22,27],[23,2,23,24],[25,2,25,24],[25,25,25,27],[28,2,28,24],[28,25,28,27],[29,2,29,24],[29,25,29,27],[30,2,30,24],[30,25,30,27],[23,25,23,27],[24,2,24,24],[24,25,24,27],[26,25,26,27],[27,2,27,24],[27,25,27,27],[8,1,8,5],[9,1,10,5],[11,1,11,5],[12,1,12,5],[12,6,12,27],[17,1,17,27],[4,1,4,27],[6,1,6,5],[6,6,6,21],[6,22,6,24],[6,25,6,26],[7,1,7,5],[7,6,7,8],[7,9,7,15],[7,16,7,18],[7,19,7,27]]}
[]
[]
[]
[null,"（別紙３　様式第1９号　別紙２）"]
[null,"森林・山村多面的機能発揮に対する効果チェックシート"]
[null,"１．活動組織の概要"]
[null,"①活動組織名",null,null,null,null,{"$f":"基本情報!C20","v":0},null,null,null,null,null,null,null,null,null,null,null,null,null,null,null,"取得年数",null,null,null,null,"年"]
[null,"②主な対象森林\nの所在地",null,null,null,null,"都道\n府県",null,null,"石川県",null,null,null,null,null,null,"市区\n町村",null,null,null,null,null,null,null,null,null,null,null,null,null,null,null,null,false]
[null,"③活動計画の取組年度",null,null,null,null,null,"　１年目",null,null,null,"   ２年目",null,null,null,null,"３年目",null,null,null,null,null,null,null,null,null,null,null,null,null,null,null,null,false,false]
[null,"④活動タイプ等\n（○年度）",null,null,null,null,"　    活動推進費",null,null,null,null,null,"里山林保全",null,null,null,null,"竹林整備",null,null,null,null,"森林資源利用",null,null,null,null,null,null,null,null,null,null,false,false]
[null,null,null,null,null,null,"　    森林機能強化",null,null,null,null,null,null,"関係人口",null,null,null,null,"資機材購入",null,null,null,null,null,null,null,null,null,null,null,null,null,null,false,false]
[null,"⑤地域住民の比率",null,null,null,null,"　   90%以上",null,null,null,null,"75～90%",null,null,null,"50～75%",null,null,null,"25～50%",null,null,null,"25%未満",null,null,null,null,null,null,null,null,null,false,false]
[null,"⑥活動目標",null,null,null,null,null,null,null,null,null,null,null,null,null,null,null,null,null,null,null,null,null,null,null,null,null,null,null,null,null,null,null,false,false]
[null,"※③・④・⑤欄は、該当する□又は○にチェックを付けてください。",null,null,null,null,null,null,null,null,null,null,null,null,null,null,null,null,null,null,null,null,null,null,null,null,null,null,null,null,null,null,null,false,false]
[null,null,null,null,null,null,null,null,null,null,null,null,null,null,null,null,null,null,null,null,null,null,null,null,null,null,null,null,null,null,null,null,null,false,false]
[]
[null,"２．活動の変化・成果の確認（※本交付金の取得前と比較の上でご回答ください。）",null,null,null,null,null,null,null,null,null,null,null,null,null,null,null,null,null,null,null,null,null,null,null,null,null,null,null,null,null,null,null,false,false]
[null,"※以下の項目について、実現ができていると思う場合には、右側の□にチェックを入れてください。"]
[null,"※チェック欄は、活動計画1年目の時は「1年間」、2年目の時は「2年間」、3年目の時は「3年間」の活動を通じた変化・効果を記載してください。"]
[null,"項目","効果",null,null,null,null,null,null,null,null,null,null,null,null,null,null,null,null,null,null,null,null,null,null,"チェック欄",null,null,null,null,null,null,null,false,false]
[null,null,null,null,null,null,null,null,null,null,null,null,null,null,null,null,null,null,null,null,null,null,null,null,null,null,null,null,null,null,null,null,null,false,false]
[null,"（横展開）\n活動の広がり","　活動組織の構成員数が増加した",null,null,null,null,null,null,null,null,null,null,null,null,null,null,null,null,null,null,null,null,null,null,null,null,null,null,null,null,null,null,false,false]
[null,null,"　幅広い年齢層が協力して活動を行った",null,null,null,null,null,null,null,null,null,null,null,null,null,null,null,null,null,null,null,null,null,null,null,null,null,null,null,null,null,null,true,false]
[null,null,"　新聞や雑誌、広報誌などで活動を紹介された",null,null,null,null,null,null,null,null,null,null,null,null,null,null,null,null,null,null,null,null,null,null,null,null,null,null,null,null,null,null,false,false]
[null,null,"　他団体（活動団体、企業、自治体等）との協力関係がうまれた",null,null,null,null,null,null,null,null,null,null,null,null,null,null,null,null,null,null,null,null,null,null,null,null,null,null,null,null,null,null,false,false]
[null,null,"　外部（異なる集落や都市）の住民も森林整備活動に参加した",null,null,null,null,null,null,null,null,null,null,null,null,null,null,null,null,null,null,null,null,null,null,null,null,null,null,null,null,null,null,false,false]
[null,"（自立性）\n活動の持続性","　構成員が森林整備のための技術や安全管理の資格を取得した",null,null,null,null,null,null,null,null,null,null,null,null,null,null,null,null,null,null,null,null,null,null,null,null,null,null,null,null,null,null,false,false]
[null,null,"　森林整備のための機材や道具を使用できる構成員数が増えた",null,null,null,null,null,null,null,null,null,null,null,null,null,null,null,null,null,null,null,null,null,null,null,null,null,null,null,null,null,null,false,false]
[null,null,"　森林整備のために利用可能な本交付金以外の資金が増えた",null,null,null,null,null,null,null,null,null,null,null,null,null,null,null,null,null,null,null,null,null,null,null,null,null,null,null,null,null,null,false,false]
[null,null,"　若い世代（40歳未満）が参加しており、長期的な活動が可能である",null,null,null,null,null,null,null,null,null,null,null,null,null,null,null,null,null,null,null,null,null,null,null,null,null,null,null,null,null,null,false,false]
[null,null,"　本交付金終了後に森林整備活動を継続できる見込みがある",null,null,null,null,null,null,null,null,null,null,null,null,null,null,null,null,null,null,null,null,null,null,null,null,null,null,null,null,null,null,true,false]
[null,"（景観）\n地域貢献","　対象森林が明るくなり、見通しが良くなった",null,null,null,null,null,null,null,null,null,null,null,null,null,null,null,null,null,null,null,null,null,null,null,null,null,null,null,null,null,null,false,false]
[null,null,"　活動組織の構成員以外から景観が良くなったと言われるようになった",null,null,null,null,null,null,null,null,null,null,null,null,null,null,null,null,null,null,null,null,null,null,null,null,null,null,null,null,null,null,false,false]
[null,null,"　対象森林や周辺で不法投棄されるゴミの量が減った／ゴミのない状態を維持している",null,null,null,null,null,null,null,null,null,null,null,null,null,null,null,null,null,null,null,null,null,null,null,null,null,null,null,null,null,null,false,false]
[null,null,"　対象森林が、観光資源としても利用できるようになった",null,null,null,null,null,null,null,null,null,null,null,null,null,null,null,null,null,null,null,null,null,null,null,null,null,null,null,null,null,null,false,false]
[null,null,"　在来種や歴史性を考慮した地域ならではの景観を守っている",null,null,null,null,null,null,null,null,null,null,null,null,null,null,null,null,null,null,null,null,null,null,null,null,null,null,null,null,null,null,false,false]
[null,"（文化・教育）\n地域貢献","　対象森林が、地域の憩いの場として活用されている",null,null,null,null,null,null,null,null,null,null,null,null,null,null,null,null,null,null,null,null,null,null,null,null,null,null,null,null,null,null,null,false]
[null,null,"　対象森林が、地域の子供たちの自然体験活動や学習・教育の場となっている",null,null,null,null,null,null,null,null,null,null,null,null,null,null,null,null,null,null,null,null,null,null,null,null,null,null,null,null,null,null,null,false]
[null,null,"　地域の幼稚園、保育園、小中学校のいずれかと協力関係にある",null,null,null,null,null,null,null,null,null,null,null,null,null,null,null,null,null,null,null,null,null,null,null,null,null,null,null,null,null,null,null,false]
[null,null,"　対象森林から得られた資源を伝統工芸品づくりに活用した",null,null,null,null,null,null,null,null,null,null,null,null,null,null,null,null,null,null,null,null,null,null,null,null,null,null,null,null,null,null,null,false]
[null,null,"　伝統文化の維持や郷土食づくりに貢献する活動を行った",null,null,null,null,null,null,null,null,null,null,null,null,null,null,null,null,null,null,null,null,null,null,null,null,null,null,null,null,null,null,null,false]
[null,"（その他）\n地域貢献","　鳥獣被害が軽減された（野生鳥獣の出没・侵入が減った）",null,null,null,null,null,null,null,null,null,null,null,null,null,null,null,null,null,null,null,null,null,null,null,null,null,null,null,null,null,null,null,false]
[null,null,"　地域の農業と連携した活動を行った",null,null,null,null,null,null,null,null,null,null,null,null,null,null,null,null,null,null,null,null,null,null,null,null,null,null,null,null,null,null,null,false]
[null,null,"　希少動植物の保護や生物多様性の保全に貢献している",null,null,null,null,null,null,null,null,null,null,null,null,null,null,null,null,null,null,null,null,null,null,null,null,null,null,null,null,null,null,null,false]
[null,null,"　土砂流出が軽減されるなど自然災害の防止に役立った",null,null,null,null,null,null,null,null,null,null,null,null,null,null,null,null,null,null,null,null,null,null,null,null,null,null,null,null,null,null,null,false]
[null,null,"　特産品の開発や地域の雇用創出など地域経済の活性化に貢献している",null,null,null,null,null,null,null,null,null,null,null,null,null,null,null,null,null,null,null,null,null,null,null,null,null,null,null,null,null,null,null,false]
[null,null,null,null,null,null,null,null,null,null,null,null,null,null,null,null,null,null,null,null,null,null,null,null,null,null,null,null,null,null,null,null,null,false,false]
[]
[null,null,null,null,null,null,null,null,null,null,null,null,null,null,null,null,null,null,null,null,null,null,null,null,null,null,null,null,null,null,null,null,null,false,false]
[]
[null,"３．関係人口の創出について",null,null,null,null,null,null,null,null,null,null,null,null,null,null,null,null,null,null,null,null,null,null,null,null,null,null,null,null,null,null,null,false,false]
[null,"　今年度に実施した本交付金の活動における地域外からの活動参加者の「延べ人数」及び昨年度の参加者の「延べ人数」の比較について記載してください。"]
[]
[null,"\n　①今年度の地域外からの参加者数\n　　　（延べ人数を記載してください。）",null,null,null,null,null,null,null,null,null,null,null,null,null,null,null,null,null,null,null,null,null,null,null,null,null,null,null,null,null,null,null,null,false]
[null,null,null,null,null,null,null,null,null,null,null,null,null,null,null,null,null,null,null,null,null,null,null,null,null,null,null,null,null,null,null,null,null,null,false]
[null,null,null,null,null,null,null,null,null,null,null,null,null,null,null,null,null,null,null,null,null,null,null,null,null,null,null,null,null,null,null,null,null,null,false]
[null,null,null,null,null,null,null,null,null,null,null,null,null,null,null,null,null,null,null,null,null,null,null,null,null,null,null,null,null,null,null,null,null,null,false]
[null,"\n\n　②昨年度の地域外からの参加者との比較\n　　（延べ人数で比較して、「増加した」か「減少した」\n　　　のどちらかに記載してださい。）\n",null,null,null,null,null,null,null,null,null,null,null,null,"    増加した　（　　　　　　　　　　　　　　　　　人）",null,null,null,null,null,null,null,null,null,null,null,null,null,null,null,null,null,null,null,false]
[null,null,null,null,null,null,null,null,null,null,null,null,null,null,null,null,null,null,null,null,null,null,null,null,null,null,null,null,null,null,null,null,null,null,false]
[null,null,null,null,null,null,null,null,null,null,null,null,null,null,null,null,null,null,null,null,null,null,null,null,null,null,null,null,null,null,null,null,null,null,false]
[null,null,null,null,null,null,null,null,null,null,null,null,null,null,"    減少した　（　　　　　　　　　　　　　　　　　人）",null,null,null,null,null,null,null,null,null,null,null,null,null,null,null,null,null,null,null,false]
[]
[]
[null,null,null,null,null,null,null,null,null,null,null,null,null,null,"　　変化なし",null,null,null,null,null,null,null,null,null,null,null,null,null,null,null,null,null,null,null,false,false]
[]
[]
[null,"■ 特筆事項（災害等の状況）",null,null,null,null,null,null,null,null,null,null,null,null,null,null,null,null,null,null,null,null,null,null,null,null,null,null,null,null,null,null,null,null,false,false]
[null,"　自然災害等により、活動を計画どおりに行うことが困難な状況が生じた場合は、期待どおりの効果が得られ\nないことも想定されます。\n　災害等が発生し計画どおりに活動ができなかった場合には、その理由を選択し、該当がなければその他に\n簡単にご記入ください。",null,null,null,null,null,null,null,null,null,null,null,null,null,null,null,null,null,null,null,null,null,null,null,null,null,null,null,null,null,null,null,null,false,false]
[null,null,"災害等で活動区域が被害を受け、活動が行えなかった。",null,null,null,null,null,null,null,null,null,null,null,null,null,null,null,null,null,null,null,null,null,null,null,null,null,null,null,null,null,null,null,false,false]
[null,null,"災害等で活動区域までの道が被害を受け、活動が行えなかった。",null,null,null,null,null,null,null,null,null,null,null,null,null,null,null,null,null,null,null,null,null,null,null,null,null,null,null,null,null,null,null,false,false]
[null,null,"土地所有者との協定が締結できず活動を行えなかった。",null,null,null,null,null,null,null,null,null,null,null,null,null,null,null,null,null,null,null,null,null,null,null,null,null,null,null,null,null,null,null,false,false]
[null,null,"感染症等の感染防止ため活動を行えなかった。",null,null,null,null,null,null,null,null,null,null,null,null,null,null,null,null,null,null,null,null,null,null,null,null,null,null,null,null,null,null,null,false]
[null,null,"その他",null,null,null,null,null,null,null,null,null,null,null,null,null,null,null,null,null,null,null,null,null,null,null,null,null,null,null,null,null,null,null,false]
[null,null,null,null,null,null,null,null,null,null,null,null,null,null,null,null,null,null,null,null,null,null,null,null,null,null,null,null,null,null,null,null,null,null,false]
[null,null,null,null,null,null,null,null,null,null,null,null,null,null,null,null,null,null,null,null,null,null,null,null,null,null,null,null,null,null,null,null,null,null,false]
[null,null,null,null,null,null,null,null,null,null,null,null,null,null,null,null,null,null,null,null,null,null,null,null,null,null,null,null,null,null,null,null,null,null,false]
[null,null,null,null,null,null,null,null,null,null,null,null,null,null,null,null,null,null,null,null,null,null,null,null,null,null,null,null,null,null,null,null,null,null,false]
[]
[]
[]
[]
[null,"　",null,null,null,null,null,null,null,null,null,null,null,null,null,null,null,null,null,null,null,null,null,null,null,null,null,null,null,null,null,null,null,null,false]
[]
[null,null,null,null,null,null,null,null,null,null,null,null,null,null,null,null,null,null,null,null,null,null,null,null,null,null,null,null,null,null,null,null,null,null,false]
[null,null,null,null,null,null,null,null,null,null,null,null,null,null,null,null,null,null,null,null,null,null,null,null,null,null,null,null,null,null,null,null,null,null,false]
[null,null,null,null,null,null,null,null,null,null,null,null,null,null,null,null,null,null,null,null,null,null,null,null,null,null,null,null,null,null,null,null,null,null,false]
[null,null,null,null,null,null,null,null,null,null,null,null,null,null,null,null,null,null,null,null,null,null,null,null,null,null,null,null,null,null,null,null,null,null,false]
[null,null,null,null,null,null,null,null,null,null,null,null,null,null,null,null,null,null,null,null,null,null,null,null,null,null,null,null,null,null,null,null,null,null,false]
[null,null,null,null,null,null,null,null,null,null,null,null,null,null,null,null,null,null,null,null,null,null,null,null,null,null,null,null,null,null,null,null,null,null,false]
[null,null,null,null,null,null,null,null,null,null,null,null,null,null,null,null,null,null,null,null,null,null,null,null,null,null,null,null,null,null,null,null,null,null,false]
[null,null,null,null,null,null,null,null,null,null,null,null,null,null,null,null,null,null,null,null,null,null,null,null,null,null,null,null,null,null,null,null,null,null,false]
[null,null,null,null,null,null,null,null,null,null,null,null,null,null,null,null,null,null,null,null,null,null,null,null,null,null,null,null,null,null,null,null,null,null,false]
[null,null,null,null,null,null,null,null,null,null,null,null,null,null,null,null,null,null,null,null,null,null,null,null,null,null,null,null,null,null,null,null,null,null,false]
[null,null,null,null,null,null,null,null,null,null,null,null,null,null,null,null,null,null,null,null,null,null,null,null,null,null,null,null,null,null,null,null,null,null,false]
[null,null,null,null,null,null,null,null,null,null,null,null,null,null,null,null,null,null,null,null,null,null,null,null,null,null,null,null,null,null,null,null,null,null,false]
[null,null,null,null,null,null,null,null,null,null,null,null,null,null,null,null,null,null,null,null,null,null,null,null,null,null,null,null,null,null,null,null,null,null,false]
[null,null,null,null,null,null,null,null,null,null,null,null,null,null,null,null,null,null,null,null,null,null,null,null,null,null,null,null,null,null,null,null,null,null,false]
[null,null,null,null,null,null,null,null,null,null,null,null,null,null,null,null,null,null,null,null,null,null,null,null,null,null,null,null,null,null,null,null,null,null,false]
[null,null,null,null,null,null,null,null,null,null,null,null,null,null,null,null,null,null,null,null,null,null,null,null,null,null,null,null,null,null,null,null,null,null,false]
[null,null,null,null,null,null,null,null,null,null,null,null,null,null,null,null,null,null,null,null,null,null,null,null,null,null,null,null,null,null,null,null,null,null,false]
[null,null,null,null,null,null,null,null,null,null,null,null,null,null,null,null,null,null,null,null,null,null,null,null,null,null,null,null,null,null,null,null,null,null,false]
[null,null,null,null,null,null,null,null,null,null,null,null,null,null,null,null,null,null,null,null,null,null,null,null,null,null,null,null,null,null,null,null,null,null,false]
[null,null,null,null,null,null,null,null,null,null,null,null,null,null,null,null,null,null,null,null,null,null,null,null,null,null,null,null,null,null,null,null,null,null,false]
[null,null,null,null,null,null,null,null,null,null,null,null,null,null,null,null,null,null,null,null,null,null,null,null,null,null,null,null,null,null,null,null,null,null,false]
[null,null,null,null,null,null,null,null,null,null,null,null,null,null,null,null,null,null,null,null,null,null,null,null,null,null,null,null,null,null,null,null,null,null,false]
[null,null,null,null,null,null,null,null,null,null,null,null,null,null,null,null,null,null,null,null,null,null,null,null,null,null,null,null,null,null,null,null,null,null,false]
[null,null,null,null,null,null,null,null,null,null,null,null,null,null,null,null,null,null,null,null,null,null,null,null,null,null,null,null,null,null,null,null,null,null,false]
[null,null,null,null,null,null,null,null,null,null,null,null,null,null,null,null,null,null,null,null,null,null,null,null,null,null,null,null,null,null,null,null,null,null,false]
[null,null,null,null,null,null,null,null,null,null,null,null,null,null,null,null,null,null,null,null,null,null,null,null,null,null,null,null,null,null,null,null,null,null,false]
[null,null,null,null,null,null,null,null,null,null,null,null,null,null,null,null,null,null,null,null,null,null,null,null,null,null,null,null,null,null,null,null,null,null,false]
[null,null,null,null,null,null,null,null,null,null,null,null,null,null,null,null,null,null,null,null,null,null,null,null,null,null,null,null,null,null,null,null,null,null,false]
[null,null,null,null,null,null,null,null,null,null,null,null,null,null,null,null,null,null,null,null,null,null,null,null,null,null,null,null,null,null,null,null,null,null,false]
[null,null,null,null,null,null,null,null,null,null,null,null,null,null,null,null,null,null,null,null,null,null,null,null,null,null,null,null,null,null,null,null,null,null,false]
[null,null,null,null,null,null,null,null,null,null,null,null,null,null,null,null,null,null,null,null,null,null,null,null,null,null,null,null,null,null,null,null,null,null,false]
[null,null,null,null,null,null,null,null,null,null,null,null,null,null,null,null,null,null,null,null,null,null,null,null,null,null,null,null,null,null,null,null,null,null,false]

{"sheet":"実施状況報告","index":21,"n_rows":33,"n_cols":8,"rows_kept":33,"cut":false,"hidden":false,"merged":[[30,0,30,6],[28,0,28,6],[19,0,19,6],[21,1,21,6],[23,1,23,6],[25,1,25,6],[15,0,17,6],[4,5,4,6],[5,5,5,6],[9,0,9,6],[10,0,10,6],[13,0,13,6]]}
[]
[]
[]
["（様式第19号）"]
[null,null,null,null,null,"石森推発第27号"]
[null,null,null,null,null,"2024-02-06",null,"←西暦で2024/2/28のように入力ください"]
[]
["いしかわ森林・山村多面的機能発揮対策協議会"]
["会長　橘　順吉　殿"]
[{"$f":"基本情報!C20","v":0}]
[{"$f":"基本情報!C21","v":0}]
[]
[]
[{"$f":"\"令和\"&基本情報!C18&\"年度　森林・山村多面的機能発揮対策交付金に係る実施状況報告書\"","v":"令和年度　森林・山村多面的機能発揮対策交付金に係る実施状況報告書"}]
[]
[{"$f":"\"　令和\"&基本情報!C18&\"年度の実施状況について、森林・山村多面的機能発揮対策実施要領（平成25年５月16日25林整森第74号林野庁長官通知）別紙３の第５の８に基づき、下記の関係書類を添えて報告する。\"","v":"　令和年度の実施状況について、森林・山村多面的機能発揮対策実施要領（平成25年５月16日25林整森第74号林野庁長官通知）別紙３の第５の８に基づき、下記の関係書類を添えて報告する。"}]
[]
[]
[]
["記"]
[{"$f":"\"１  令和\"&基本情報!C18&\"年度　森林・山村多面的機能発揮対策交付金（活動記録）（別紙3 様式第16号）\"","v":"１  令和年度　森林・山村多面的機能発揮対策交付金（活動記録）（別紙3 様式第16号）"}]
[]
["２　作業写真整理帳（様式第16号別添１及び２）"]
[]
[{"$f":"\"３　令和\"&基本情報!C18&\"年度　森林・山村多面的機能発揮対策交付金（金銭出納簿）（別紙3 様式第17号）\"","v":"３　令和年度　森林・山村多面的機能発揮対策交付金（金銭出納簿）（別紙3 様式第17号）"}]
[]
[{"$f":"\"４　令和\"&基本情報!C18&\"年度　モニタリング結果報告書 (別紙3　様式第18号）\"","v":"４　令和年度　モニタリング結果報告書 (別紙3　様式第18号）"}]
[]
[{"$f":"\"５　令和\"&基本情報!C18&\"年度　実施状況整理票（別紙１）\"","v":"５　令和年度　実施状況整理票（別紙１）"}]
[]
[{"$f":"\"６　令和\"&基本情報!C18&\"年度　森林・山村多面的機能発揮に対する効果チェックシート（別紙２）\"","v":"６　令和年度　森林・山村多面的機能発揮に対する効果チェックシート（別紙２）"}]
[]
["（※精算払いがある場合は業務方法書の別記様式第1号も併せて添付すること。）"]

{"sheet":"実施状況整理票 (様式19号別紙）","index":22,"n_rows":16,"n_cols":33,"rows_kept":16,"cut":false,"hidden":false,"merged":[[4,1,4,30],[5,1,9,1],[5,2,9,2],[5,3,9,3],[5,4,9,4],[5,5,9,5],[5,6,5,14],[5,15,9,15],[5,18,5,31],[7,6,9,6],[7,19,9,19],[7,20,9,20],[7,24,7,25],[8,25,9,25],[7,21,7,23],[7,26,9,26],[7,7,9,7],[7,18,9,18],[6,6,6,7],[6,8,9,8],[6,9,9,9],[6,11,9,11],[6,12,9,12],[6,13,8,14],[6,18,6,25],[8,21,9,21],[8,22,8,23],[8,24,9,24],[6,10,9,10],[5,16,9,16],[5,17,9,17],[7,29,9,29],[7,30,8,31],[5,32,9,32],[7,27,9,27],[7,28,9,28],[6,26,6,31]]}
[]
[]
[]
[null,"（様式第19号　別紙1）"]
[null,"実施状況整理票"]
[null,"都道府県名","地域協議会名","市町村名","対象森林所在市町村名","活動組織名","取組内容",null,null,null,null,null,null,null,null,"構成員(名)","地域外関係者の参加者数（延べ人数）","アドバイザー活用の有無","交付金の使途（円）",null,null,null,null,null,null,null,null,null,null,null,null,null,"備考"]
[null,null,null,null,null,null,"地域環境保全タイプ",null,"森林資源利用タイプ (ha)","森林機能強化タイプ (m)","関係人口創出・維持タイプ（組織数）","間伐等(除伐、枝打ち含む)の実施面積 (ha)","当該年度に長期にわたり手入れをされていなかったと考えられる里山林を整備した面積 (ha)","資機材・施設の整備(円)",null,null,null,null,"収入",null,null,null,null,null,null,null,"支出"]
[null,null,null,null,null,null,"里山林保全 (ha)","侵入竹除去・竹林整備　(ha)",null,null,null,null,null,null,null,null,null,null,"合計","自己負担額","小計","国庫分",null,null,"地方分",null,"合計","人件費","委託料","その他","資機材・施設の整備"]
[null,null,null,null,null,null,null,null,null,null,null,null,null,null,null,null,null,null,null,null,null,"取組に対する交付金","資機材・施設の整備に対する交付金",null,"都道府県の支援額","市町村の支援額"]
[null,null,null,null,null,null,null,null,null,null,null,null,null,"交付率\n1/2以内","交付率\n1/3以内",null,null,null,null,null,null,null,"交付率\n1/2以内","交付率\n1/3以内",null,null,null,null,null,null,"交付率\n1/2以内","交付率\n1/3以内"]
[null,"石川県","いしかわ森林・山村多面的機能発揮対策協議会",{"$f":"基本情報!C7","v":0},{"$f":"基本情報!C8","v":0},{"$f":"基本情報!C20","v":0},null,null,null,null,null,null,null,null,null,null,null,null,{"$f":"SUM(T11:U11)","v":0},null,null,null,null,null,null,null,{"$f":"SUM(AB11:AF11)","v":0},null,null,null,{"$f":"N11","v":0},{"$f":"O11","v":0}]
[]
[null,"１：支出については自己負担額を含めた額を記載すること。"]
[null,"２：関係人口創出・維持タイプに該当する場合は「1」を記入すること。"]
[null,"３：アドバイザーを活用した場合は、①～⑧の指導・助言の内容を記入すること。（複数回活用した場合は複数記載）"]
[null,null,"①森林施業、②侵入竹の伐採・除去・利活用、③森林資源の活用、④森林生態、植生、⑤関係人口、⑥組織づくり、⑦安全管理、⑧その他"]

{"sheet":"人件費領収書","index":23,"n_rows":36,"n_cols":19,"rows_kept":36,"cut":false,"hidden":false,"merged":[[26,3,26,4],[26,6,26,7],[27,6,27,7],[28,6,28,7],[34,3,34,4],[27,3,27,4],[28,3,28,4],[29,3,29,4],[30,3,30,4],[31,3,31,4],[33,3,33,4],[32,3,32,4],[7,16,7,17],[29,6,29,7],[30,6,30,7],[31,6,31,7],[34,6,34,7],[33,6,33,7],[7,7,7,12],[32,6,32,7]]}
[null,null,null,null,null,null,null,null,null,null,null,null,null,null,null,null,"活動推進"]
[null,null,null,null,null,null,null,null,null,null,null,null,null,null,null,null,"環境(里山)"]
[null,null,null,null,null,null,null,null,null,null,null,null,null,null,null,null,"環境(竹林)"]
[null,null,null,null,null,null,null,null,null,null,null,null,null,null,null,null,"資源利用"]
[null,null,null,null,null,null,null,null,null,null,null,null,null,null,null,null,"機能強化"]
[null,null,null,null,null,null,null,null,null,null,null,null,null,null,null,null,"関係人口創出・維持"]
[null,null,"任意様式",null,null,null,null,null,null,null,null,null,null,null,null,null,"資機材の整備"]
[null,null,null,null,null,null,null,"活動日誌兼人件費領収書",null,null,null,null,null,null,null,null,"領収書番号　　　　"]
[null,null,"日付","曜日","開始\n時刻","終了\n時刻","内休憩\n時間","活動\n時間","活動タイプ",null,"活動場所","具体的活動内容","写真NO","時間単価","燃料","機材","交通費","日額"]
[null,null,null,null,null,null,null,null,null,null,null,null,null,null,null,null,null,null,44469]
[null,null,null,null,null,null,null,null,null,null,null,null,null,null,null,null,null,null,44469]
[]
[]
[]
[]
[]
[]
[]
[]
[]
[]
[]
[]
[null,null,"計",null,null,null,null,{"$f":"SUM(H10:H23)","v":0},null,null,null,null,null,null,{"$f":"SUM(O10:O23)","v":0},{"$f":"SUM(P10:P23)","v":0},{"$f":"SUM(Q10:Q23)","v":0},{"$f":"SUM(R10:R23)","v":0}]
[]
[null,null,null,null,"タイプ毎再掲"]
[null,null,null,"タイプ",null,"延べ時間","金額",null,null,null,null,null,null,"　　令和　　　年　　　　月　　　　日"]
[null,null,null,"活動推進",null,{"$f":"DOLLARFR(SUMIF($I$10:$I$23,D28,$H$10:$H$23)*24,60)","v":0},{"$f":"SUMIF($I$10:$I$23,D28,$R$10:$R$23)","v":0},null,null,null,null,null,null,"上記事項を確認し、人件費等受領致しました。"]
[null,null,null,"環境(里山)",null,0,0]
[null,null,null,"環境(竹林)",null,0,0]
[null,null,null,"資源利用",null,0,0,null,null,null,null,null,null,"住所"]
[null,null,null,"機能強化",null,0,0]
[null,null,null,"関係人口創出・維持",null,0,0]
[null,null,null,"資機材の整備",null,0,0]
[null,null,null,"合計",null,{"$f":"SUM(F28:F34)","v":0},{"$f":"SUM(G28:H34)","v":0},null,null,null,null,null,null,"氏名"]
[null,null,null,null,null,null,null,null,null,null,null,null,null,null,"（氏名は直筆で記載）"]

{"sheet":"交付金申請（請求書）","index":24,"n_rows":41,"n_cols":99,"rows_kept":41,"cut":false,"hidden":false,"merged":[[22,6,22,68],[22,69,22,96],[21,6,21,96],[19,6,19,66],[15,5,19,5],[21,5,35,5],[18,67,18,96],[19,67,19,96],[18,6,18,66],[25,6,25,33],[25,34,25,96],[23,6,24,33],[23,34,23,68],[24,34,24,68],[33,6,33,17],[33,41,33,54],[3,49,3,63],[3,64,3,96],[15,67,15,96],[16,67,16,96],[17,67,17,96],[4,49,4,96],[15,6,15,66],[16,6,16,66],[17,6,17,66],[9,5,9,96],[10,5,10,96],[12,6,13,94],[31,24,31,29],[31,30,31,35],[32,55,32,96],[32,6,32,54],[31,90,31,96],[31,83,31,89],[31,76,31,82],[36,5,39,5],[34,6,34,40],[34,41,34,96],[38,17,38,38],[33,83,33,96],[36,6,36,16],[37,6,37,16],[36,17,36,96],[37,17,37,96],[39,17,39,96],[38,6,38,16],[39,6,39,16],[33,29,33,40],[33,55,33,68],[33,18,33,28],[38,48,38,96],[26,79,26,87],[26,70,26,78],[27,6,27,96],[28,6,28,96],[31,36,31,40],[31,41,31,47],[31,48,31,54],[31,55,31,61],[31,62,31,68],[31,6,31,11],[31,12,31,17],[29,6,30,40],[29,41,30,96],[26,88,26,96],[26,6,26,33],[31,18,31,23],[33,69,33,82],[20,6,20,96],[26,61,26,69],[31,69,31,75],[35,49,35,56],[35,41,35,48],[35,6,35,40],[35,89,35,96],[35,81,35,88],[35,73,35,80],[35,65,35,72],[35,57,35,64],[26,52,26,60],[26,43,26,51],[26,34,26,42],[23,69,24,96]]}
[]
[]
[null,null,null,null,null,"（別記様式第1号）"]
[null,null,null,null,null,null,null,null,null,null,null,null,null,null,null,null,null,null,null,null,null,null,null,null,null,null,null,null,null,null,null,null,null,null,null,null,null,null,null,null,null,null,null,null,null,null,null,null,null,"申請年月日",null,null,null,null,null,null,null,null,null,null,null,null,null,null,null,null,null,null,null,null,null,null,null,null,null,null,null,null,null,null,null,null,null,null,null,null,null,null,null,null,null,null,null,null,null,null,null,null,"←西暦で2024/2/28のように入力ください"]
[null,null,null,null,null,null,null,null,null,null,null,null,null,null,null,null,null,null,null,null,null,null,null,null,null,null,null,null,null,null,null,null,null,null,null,null,null,null,null,null,null,null,null,null,null,null,null,null,null,"    年度　　第　　　　号"]
[]
[null,null,null,null,null,"いしかわ森林・山村多面的機能発揮対策協議会"]
[null,null,null,null,null,"会長　橘　順吉　殿"]
[]
[null,null,null,null,null,{"$f":"基本情報!C20","v":0}]
[null,null,null,null,null,{"$f":"基本情報!C21","v":0}]
[]
[null,null,null,null,null,null,{"$f":"基本情報!C29&\"にて採択通知のあった森林・山村多面的機能発揮対策交付金の交付を受けたいので、下記のとおり申請します。\"","v":"にて採択通知のあった森林・山村多面的機能発揮対策交付金の交付を受けたいので、下記のとおり申請します。"}]
[]
[]
[null,null,null,null,null,"交付申請額","項目",null,null,null,null,null,null,null,null,null,null,null,null,null,null,null,null,null,null,null,null,null,null,null,null,null,null,null,null,null,null,null,null,null,null,null,null,null,null,null,null,null,null,null,null,null,null,null,null,null,null,null,null,null,null,null,null,null,null,null,null,"金額"]
[null,null,null,null,null,null,"採択決定額　　　　　　　　　　　　①",null,null,null,null,null,null,null,null,null,null,null,null,null,null,null,null,null,null,null,null,null,null,null,null,null,null,null,null,null,null,null,null,null,null,null,null,null,null,null,null,null,null,null,null,null,null,null,null,null,null,null,null,null,null,null,null,null,null,null,null,"円"]
[null,null,null,null,null,null,"既交付額　　　　　　　　　　　　　②",null,null,null,null,null,null,null,null,null,null,null,null,null,null,null,null,null,null,null,null,null,null,null,null,null,null,null,null,null,null,null,null,null,null,null,null,null,null,null,null,null,null,null,null,null,null,null,null,null,null,null,null,null,null,null,null,null,null,null,null,"円"]
[null,null,null,null,null,null,"今回申請額　　　　　　　　　　　　③",null,null,null,null,null,null,null,null,null,null,null,null,null,null,null,null,null,null,null,null,null,null,null,null,null,null,null,null,null,null,null,null,null,null,null,null,null,null,null,null,null,null,null,null,null,null,null,null,null,null,null,null,null,null,null,null,null,null,null,null,"円"]
[null,null,null,null,null,null,"採択決定額（年間交付額）との差額　④＝①－②－③",null,null,null,null,null,null,null,null,null,null,null,null,null,null,null,null,null,null,null,null,null,null,null,null,null,null,null,null,null,null,null,null,null,null,null,null,null,null,null,null,null,null,null,null,null,null,null,null,null,null,null,null,null,null,null,null,null,null,null,null,{"$f":"BP17-BP18-BP19","v":{"$error":"#VALUE!"}}]
[]
[null,null,null,null,null,"交付金振込口座"," 金融機関（ゆうちょ銀行以外）"]
[null,null,null,null,null,null," 金融機関名",null,null,null,null,null,null,null,null,null,null,null,null,null,null,null,null,null,null,null,null,null,null,null,null,null,null,null,null,null,null,null,null,null,null,null,null,null,null,null,null,null,null,null,null,null,null,null,null,null,null,null,null,null,null,null,null,null,null,null,null,null,null," 支店名"]
[null,null,null,null,null,null,null,null,null,null,null,null,null,null,null,null,null,null,null,null,null,null,null,null,null,null,null,null,null,null,null,null,null,null,"　農業協同組合　銀行　信用金庫"]
[null,null,null,null,null,null,null,null,null,null,null,null,null,null,null,null,null,null,null,null,null,null,null,null,null,null,null,null,null,null,null,null,null,null,"　信用組合　労働金庫　信連　農林中金"]
[null,null,null,null,null,null,"預金種別（該当のものにレ印を記入）",null,null,null,null,null,null,null,null,null,null,null,null,null,null,null,null,null,null,null,null,null,null,null,null,null,null,null,"口座番号（右づめで記入）"]
[null,null,null,null,null,null,"□普通　□当座\n□別段　□通知"]
[null,null,null,null,null,null,"《ゆうちょ銀行の方はこちらに記入してください。》"]
[null,null,null,null,null,null," ゆうちょ銀行"]
[null,null,null,null,null,null," 記号\n（６ケタ目がある場合は※部分に記 入）\n",null,null,null,null,null,null,null,null,null,null,null,null,null,null,null,null,null,null,null,null,null,null,null,null,null,null,null,null,null,null,null,null,null,null," 番号（右づめで記入）　"]
[]
[null,null,null,null,null,null,null,null,null,null,null,null,null,null,null,null,null,null,null,null,null,null,null,null,null,null,null,null,null,null,null,null,null,null,null,null,"※"]
[null,null,null,null,null,null," 店名",null,null,null,null,null,null,null,null,null,null,null,null,null,null,null,null,null,null,null,null,null,null,null,null,null,null,null,null,null,null,null,null,null,null,null,null,null,null,null,null,null,null,null,null,null,null,null,null,"店番"]
[null,null,null,null,null,null,null,null,null,null,null,null,null,null,null,null,null,null,null,null,null,null,null,null,null,null,null,null,null,null,null,null,null,null,null,null,null,null,null,null,null,"店"]
[null,null,null,null,null,null," 預金種目（該当のもにレ印を記入）",null,null,null,null,null,null,null,null,null,null,null,null,null,null,null,null,null,null,null,null,null,null,null,null,null,null,null,null,null,null,null,null,null,null," 口座番号（右づめで記入）"]
[null,null,null,null,null,null," □普通　□貯蓄　□当座"]
[null,null,null,null,null,"口座名義","フリガナ"]
[null,null,null,null,null,null,"口座名義"]
[null,null,null,null,null,null,"住　所",null,null,null,null,null,null,null,null,null,null," ( 〒　　　-        )",null,null,null,null,null,null,null,null,null,null,null,null,null,null,null,null,null,null,null,null,null,null,null,null,null,null,null,null,null,null,"石川県　〇〇〇　市"]
[]
[null,null,null,null,null,"　（注）交付金の振込口座の通帳の写し（口座番号、口座名義が分かる箇所）を添付してください。"]

{"sheet":"物品写真","index":25,"n_rows":67,"n_cols":33,"rows_kept":67,"cut":false,"hidden":false,"merged":[[41,2,41,6],[42,2,42,6],[44,0,57,13],[1,2,1,3],[1,5,1,6],[3,2,3,6],[5,0,18,13],[2,2,2,6],[40,2,40,3],[40,5,40,6]]}
["様式１",null,null,null,null,null,null,null,null,null,null,null,null,null,null,"（参考）"]
["区分",null,"消耗品",null,"・","資機材",null,null,null,null,null,null,null,null,null,null,null,null,null,null,null,null,null,null,null,null,null,null,null,null,null,null,"地域環境保全タイプ\n（里山林保全）"]
["活動タイプ",null,null,null,null,null,null,null,null,null,null,null,null,null,null,null,null,null,null,null,null,null,null,null,null,null,null,null,null,null,null,null,"地域環境保全タイプ\n（侵入竹除去・竹林整備）"]
["物品",null,null,null,null,null,null,null,null,null,null,null,null,null,null,null,null,null,null,null,null,null,null,null,null,null,null,null,null,null,null,null,"森林資源利用タイプ"]
[null,null,null,null,null,null,null,null,null,null,null,null,null,null,null,null,null,null,null,null,null,null,null,null,null,null,null,null,null,null,null,null,"森林機能強化タイプ"]
["領収書貼付欄",null,null,null,null,null,null,null,null,null,null,null,null,null,null,null,null,null,null,null,null,null,null,null,null,null,null,null,null,null,null,null,"関係人口創出・維持\nタイプ"]
[null,null,null,null,null,null,null,null,null,null,null,null,null,null,null,null,null,null,null,null,null,null,null,null,null,null,null,null,null,null,null,null,"資機材購入"]
[]
[]
[]
[]
[]
[]
[]
[]
[]
[]
[]
[]
[]
["写真貼付欄"]
[]
[]
[]
[]
[]
[]
[]
[]
[]
[]
[]
[]
[]
[]
[]
[]
[]
[]
["様式１"]
["区分",null,"消耗品",null,"・","資機材"]
["活動タイプ"]
["物品"]
[]
["領収書貼付欄"]
[]
[]
[]
[]
[]
[]
[]
[]
[]
[]
[]
[]
[]
[]
[]
[]
[]
[]
[]
[]
[]
["写真貼付欄"]

{"sheet":"金銭出納簿（事前に立替）","index":26,"n_rows":46,"n_cols":15,"rows_kept":46,"cut":false,"hidden":false,"merged":[[41,11,41,12],[42,11,42,12],[43,11,43,12],[44,11,44,12],[45,11,45,12],[37,0,37,1],[37,11,37,12],[38,11,38,12],[39,11,39,12],[40,11,40,12],[38,0,38,1],[8,0,8,13],[10,6,10,9],[10,2,11,2],[10,3,11,3],[10,10,11,10],[10,11,11,11],[10,0,11,1],[10,14,11,14],[10,12,11,12],[10,13,11,13],[10,4,11,4],[10,5,11,5]]}
[null,null,null,null,null,null,null,null,null,null,null,null,null,null,"活動推進"]
[null,null,null,null,null,null,null,null,null,null,null,null,null,null,"環境(里山)"]
[null,null,null,null,null,null,null,null,null,null,null,null,null,null,"環境(竹林)"]
[null,null,null,null,null,null,null,null,null,null,null,null,null,null,"資源利用"]
[null,null,null,null,null,null,null,null,null,null,null,null,null,null,"機能強化"]
[null,null,null,null,null,null,null,null,null,null,null,null,null,null,"関係人口創出・維持"]
[null,null,null,"通帳の当該年度の箇所コピーして提出",null,null,null,null,null,null,null,null,null,null,"資機材の整備"]
["（別紙3　様式17号）"]
[{"$f":"\"令和\"&基本情報!C18&\"年度　森林・山村多面的機能発揮対策交付金（金銭出納簿）\"","v":"令和年度　森林・山村多面的機能発揮対策交付金（金銭出納簿）"}]
[]
["日付",null,"タイプ","内容","収入\n（円）","立替\n（円）","支出（円）",null,null,null,"資機材購入費のうち交付金充当額","領収書等\n番号","活動\n実施日","備考\n(財産の保管場所)","残高"]
[null,null,null,null,null,null,"人件費","委託費","その他","資機材の\n購入等"]
[null,{"$f":"TEXT(A13,\"(AAA)\")","v":"(土)"},null,null,null,null,null,null,null,null,null,null,null,null,{"$f":"E13+F13-SUM(G13:J13)","v":0}]
[null,{"$f":"TEXT(A14,\"(AAA)\")","v":"(土)"},null,null,null,null,null,null,null,null,null,null,null,null,{"$f":"IF((OFFSET(O14,-1,0)+(E14+F14)-SUM(G14:J14))>=0,OFFSET(O14,-1,0)+(E14+F14)-SUM(G14:J14),\"\")","v":0}]
[null,{"$f":"TEXT(A15,\"(AAA)\")","v":"(土)"},null,null,null,null,null,null,null,null,null,null,null,null,{"$f":"IF((OFFSET(O15,-1,0)+(E15+F15)-SUM(G15:J15))>=0,OFFSET(O15,-1,0)+(E15+F15)-SUM(G15:J15),\"\")","v":0}]
[null,"(土)",null,null,null,null,null,null,null,null,null,null,null,null,0]
[null,"(土)",null,null,null,null,null,null,null,null,null,null,null,null,0]
[null,"(土)",null,null,null,null,null,null,null,null,null,null,null,null,{"$f":"IF((OFFSET(O18,-1,0)+(E18+F18)-SUM(G18:J18))>=0,OFFSET(O18,-1,0)+(E18+F18)-SUM(G18:J18),\"\")","v":0}]
[null,"(土)",null,null,null,null,null,null,null,null,null,null,null,null,{"$f":"IF((OFFSET(O19,-1,0)+(E19+F19)-SUM(G19:J19))>=0,OFFSET(O19,-1,0)+(E19+F19)-SUM(G19:J19),\"\")","v":0}]
[null,"(土)",null,null,null,null,null,null,null,null,null,null,null,null,0]
[null,"(土)",null,null,null,null,null,null,null,null,null,null,null,null,0]
[null,"(土)",null,null,null,null,null,null,null,null,null,null,null,null,0]
[null,{"$f":"TEXT(A23,\"(AAA)\")","v":"(土)"},null,null,null,null,null,null,null,null,null,null,null,null,0]
[null,"(土)",null,null,null,null,null,null,null,null,null,null,null,null,0]
[null,"(土)",null,null,null,null,null,null,null,null,null,null,null,null,0]
[null,{"$f":"TEXT(A26,\"(AAA)\")","v":"(土)"},null,null,null,null,null,null,null,null,null,null,null,null,0]
[null,{"$f":"TEXT(A27,\"(AAA)\")","v":"(土)"},null,null,null,null,null,null,null,null,null,null,null,null,{"$f":"IF((OFFSET(O27,-1,0)+(E27+F27)-SUM(G27:J27))>=0,OFFSET(O27,-1,0)+(E27+F27)-SUM(G27:J27),\"\")","v":0}]
[null,"(土)",null,null,null,null,null,null,null,null,null,null,null,null,0]
[null,{"$f":"TEXT(A29,\"(AAA)\")","v":"(土)"},null,null,null,null,null,null,null,null,null,null,null,null,0]
[null,{"$f":"TEXT(A30,\"(AAA)\")","v":"(土)"},null,null,null,null,null,null,null,null,null,null,null,null,0]
[null,"(土)",null,null,null,null,null,null,null,null,null,null,null,null,0]
[null,"(土)",null,null,null,null,null,null,null,null,null,null,null,null,0]
[null,"(土)",null,null,null,null,null,null,null,null,null,null,null,null,0]
[null,"(土)",null,null,null,null,null,null,null,null,null,null,null,null,0]
[null,{"$f":"TEXT(A35,\"(AAA)\")","v":"(土)"},null,null,null,null,null,null,null,null,null,null,null,null,0]
["計",null,null,null,{"$f":"SUM(E13:E35)","v":0},0,0,0,0,0,0,null,null,null,{"$f":"IF(O35=0,\"\",\"出納簿金額に間違いがあります\")","v":""}]
[]
[null,null,"タイプ",null,"交付金額",null,"人件費","委託費","その他","資機材の\n購入等","資機材購入費のうち\n交付金充当額","合計",null,"判定"]
["【再掲】",null,"活動推進",null,{"$f":"採択申請!$G$33","v":0},null,{"$f":"SUMIF($C$13:$C$36,C39,$G$13:$G$36)","v":0},{"$f":"SUMIF($C$13:$C$36,C39,$H$13:$H$36)","v":0},{"$f":"SUMIF($C$13:$C$36,C39,$I$13:$I$36)","v":0},"-","-",{"$f":"SUM(G39:I39)","v":0},null,{"$f":"IF(E39=0,\"\",IF(L39>E39,\"〇\",\"交付金減額\"))","v":""}]
[null,null,"環境(里山)",null,{"$f":"採択申請!$G$35","v":120000},null,0,0,0,"-","-",{"$f":"SUM(G40:I40)","v":0},null,{"$f":"IF(E40=0,\"\",IF(L40>E40,\"〇\",\"交付金減額\"))","v":"交付金減額"}]
[null,null,"環境(竹林)",null,{"$f":"採択申請!$G$38","v":0},null,0,0,0,"-","-",0,null,""]
[null,null,"資源利用",null,{"$f":"採択申請!$G$41","v":0},null,0,0,0,"-","-",0,null,""]
[null,null,"機能強化",null,{"$f":"採択申請!$G$43","v":0},null,0,0,0,"-","-",0,null,""]
[null,null,"関係人口創出・維持",null,{"$f":"採択申請!$G$44","v":0},null,0,0,0,"-","-",0,null,""]
[null,null,"資機材の整備",null,{"$f":"採択申請!$G$46","v":0},null,"-","-","-",{"$f":"SUMIF($C$13:$C$36,C45,$J$13:$J$36)","v":0},{"$f":"SUMIF($C$13:$C$36,C45,$K$13:$K$36)","v":0},{"$f":"J45","v":0},null,{"$f":"IF(E45=0,\"\",IF(L45>E45*2,\"〇\",\"交付金減額\"))","v":""}]
[null,null,"合　　計",null,{"$f":"SUM(E39:E45)","v":120000},null,{"$f":"SUM(G39:G45)","v":0},{"$f":"SUM(H39:H45)","v":0},0,0,0,{"$f":"SUM(L39:M45)","v":0}]